Cogmind - Beta 17 @@@ ROGUE MODE // 2026.07.23 @ 04:42:58 Player: Cereal Killer Result: Destroyed by H-88 Terminator with KE Penetrator Performance ------------- Evolutions (9) 4500 Regions Visited (33) 6600 Robots Destroyed (272) 1360 Value Destroyed (15950) 15950 Prototype IDs (114) 2280 Alien Tech Used (2) 400 Bonus (29688) 29688 TOTAL SCORE: 60778 Bonus ------- High Alert Combat Kills 2239 Follower Combat Kills 3279 Prayed to X0-1V1 5000 Major X0-1V1 Interference 14250 Entered Garrisons 800 Entered DSFs 1000 Aligned with FarCom 300 Acquired ECA 300 Met Zhirov 300 Met Warlord at Base 500 MAIN.C Attacked Warlord 500 Warlord Defense Kills 1438 Friendly Fire -218 Cogmind --------- Core Integrity 0/1625 Matter 202/250 Energy 1475/1500 System Corruption 38% Temperature Cool (0) Movement Core (50) Location -1/Access Parts ------- > --- POWER (3) -------- (None) > --- PROPULSION (10) -- (None) > --- UTILITY (8) ------ Experimental Sensor Array > --- WEAPON (4) ------- (None) > --- INVENTORY (5) ---- Advanced Heat Sink Advanced Coolant Injector Advanced Energy Well (500) Peak State ------------ > --- POWER ------------ Improved Quantum Reactor Vortex Chain Reactor > --- PROPULSION ------- High-density Centrium Wheel High-density Centrium Wheel High-density Centrium Wheel High-density Centrium Wheel Improved Gyrokinetic Inverter Combat Antigrav System Combat Antigrav System Antigrav Array > --- UTILITY ---------- Experimental Signal Interpreter Experimental Transmission Jammer Experimental Cloaking Device Advanced Force Field Advanced Point Defense System System Restoration Module Self-contained Transmogrifier X0-1V1's Piety Tracker > --- WEAPON ----------- Advanced Variable Charge Gun Railgun Heavy Scimitar of Distortion Enhanced Force Lance > --- INVENTORY -------- Advanced Coolant Injector Advanced Energy Well [Rating: 208] Favorites ----------- Power Vortex Chain Reactor Engine Ion Engine Power Core Light Nuclear Core Reactor Vortex Chain Reactor Propulsion Combat Antigrav System Treads Light Treads Leg Advanced Myomer Leg Wheel Wheel Hover Unit Combat Antigrav System Flight Unit Nuclear Pulse Array Utility X0-1V1's Piety Tracker Device X0-1V1's Piety Tracker Storage Large Storage Unit Processor Experimental Signal Interpreter Hackware Hacking Suite Protection Improved Light Armor Plating Weapon Molecular Scythe Energy Gun Medium Laser Energy Cannon Nova Cannon Ballistic Gun Helical Railgun Ballistic Cannon Hardcell Cannon Launcher Heavy Rocket Launcher Special Weapon Plasma Flamer Impact Weapon Shock Maul Slashing Weapon Molecular Scythe Piercing Weapon Lance Special Melee Weapon Chaos Jack Build | -11 -10 -10 -10 -9 -8 -8 -8 -8 -8 -8 -8 -6 -6 -6 -6 -6 -6 -5 -5 -5 -5 -4 -4 -4 -4 -4 -4 -4 -3 -3 -3 -2 -1 ------- Run | Yrd Mat Min Exi Min Mat Gar Mat Sto Gar Rec Scr Fac Gar Fac Gar Fac DSF Fac Upp Upp Zhi Pro Fac Was Fac Upp Upp War Pro Res DSF Res Acc Slots Evolved 18 | . . . . . 4 . . . . . . 4 . . . . . 2 . . . . 2 . . . . . . 2 . 2 2 Power 2 | . . . . . . . . . . . . 1 . . . . . . . . . . . . . . . . . . . 1 . Propulsion 7 | . . . . . . . . . . . . 1 . . . . . 1 . . . . 1 . . . . . . 2 . . 2 Utility 7 | . . . . . 3 . . . . . . 2 . . . . . 1 . . . . 1 . . . . . . . . . . Weapon 2 | . . . . . 1 . . . . . . . . . . . . . . . . . . . . . . . . . . 1 . Parts Attached 348 | 6 6 . 2 . 4 4 6 8 14 1 2 3 26 12 18 1 4 17 5 3 4 3 10 . 41 6 3 33 . 3 16 26 61 Power 51 | 1 . . . . . 2 1 . 4 . . 1 3 2 4 . 1 1 1 . . . . . 9 . . 5 . . 3 3 10 Engine 12 | 1 . . . . . 1 1 . 2 . . 1 2 . 1 . 1 . . . . . . . . . . . . . . . 2 Core 13 | . . . . . . 1 . . 1 . . . 1 2 1 . . 1 1 . . . . . 3 . . 1 . . 1 . . Reactor 26 | . . . . . . . . . 1 . . . . . 2 . . . . . . . . . 6 . . 4 . . 2 3 8 Propulsion 70 | 2 2 . 1 . . . 1 1 6 . . 1 . . 3 . . 3 1 . 3 1 3 . 10 1 . 5 . 2 3 3 18 Treads 13 | . 2 . . . . . . . 1 . . . . . 3 . . 3 1 . . . . . . . . . . . . . 3 Leg 12 | . . . . . . . . . 3 . . 1 . . . . . . . . 3 1 3 . 1 . . . . . . . . Wheel 11 | 2 . . 1 . . . . 1 1 . . . . . . . . . . . . . . . . . . . . . . . 6 Hover 33 | . . . . . . . 1 . 1 . . . . . . . . . . . . . . . 9 1 . 5 . 2 3 3 8 Flight 1 | . . . . . . . . . . . . . . . . . . . . . . . . . . . . . . . . . 1 Utility 115 | 1 3 . 1 . 2 . 2 2 3 1 . 1 6 4 7 . . 9 2 . 1 2 4 . 10 2 3 15 . 1 3 10 20 Device 85 | . 3 . . . . . 2 . 2 1 . 1 3 1 6 . . 4 2 . . 1 4 . 10 2 2 11 . 1 3 8 18 Storage 3 | 1 . . 1 . . . . . . . . . . 1 . . . . . . . . . . . . . . . . . . . Processor 6 | . . . . . . . . . . . . . . 1 . . . 1 . . . . . . . . 1 1 . . . 1 1 Hackware 2 | . . . . . . . . 2 . . . . . . . . . . . . . . . . . . . . . . . . . Protection 19 | . . . . . 2 . . . 1 . . . 3 1 1 . . 4 . . 1 1 . . . . . 3 . . . 1 1 Artifact . | . . . . . . . . . . . . . . . . . . . . . . . . . . . . . . . . . . Weapon 112 | 2 1 . . . 2 2 2 5 1 . 2 . 17 6 4 1 3 4 1 3 . . 3 . 12 3 . 8 . . 7 10 13 Energy Gun 29 | 1 1 . . . 1 . 1 4 1 . . . 2 . 1 . . . 1 1 . . . . 3 . . 4 . . 2 2 4 Energy Cannon 18 | . . . . . . 1 . 1 . . . . 1 . . . 3 2 . . . . . . . . . 1 . . 2 3 4 Ballistic Gun 28 | 1 . . . . . 1 1 . . . 2 . 7 1 2 . . 1 . . . . . . 4 . . 2 . . 2 2 2 Ballistic Cannon 13 | . . . . . . . . . . . . . 4 . 1 1 . . . 2 . . . . 3 . . . . . . 1 1 Launcher 7 | . . . . . 1 . . . . . . . 1 4 . . . 1 . . . . . . . . . . . . . . . Special Weapon 5 | . . . . . . . . . . . . . 2 . . . . . . . . . . . . 1 . . . . 1 1 . Impact Weapon 2 | . . . . . . . . . . . . . . . . . . . . . . . . . . 2 . . . . . . . Slashing Weapon 7 | . . . . . . . . . . . . . . 1 . . . . . . . . 2 . 2 . . . . . . 1 1 Piercing Weapon 2 | . . . . . . . . . . . . . . . . . . . . . . . . . . . . 1 . . . . 1 Special Melee Weapon 1 | . . . . . . . . . . . . . . . . . . . . . . . 1 . . . . . . . . . . Unidentified Prototypes 40 | . 1 . . . . . 1 5 . . . . . . . . . 1 . . 2 . . . 6 1 . 9 . . . 9 5 Corrupted Parts 3 | . . . . . . . . . . . . . . . 1 . . . . . . . . . . . . . . . . 2 . System Corruption 12 | . . . . . . . . . . . . . . . 3 . . . . . . . . . . . . . . . . 9 . Parts Lost 124 | . 1 . . 1 . . . 1 12 1 . . 19 . 7 . . 2 2 . . . 1 . 11 . . 14 . . 6 5 41 Power 19 | . . . . . . . . . 2 . . . 3 . 2 . . . . . . . . . 3 . . . . . 2 1 6 Propulsion 24 | . . . . . . . . 1 4 . . . . . 1 . . . . . . . . . . . . 2 . . . . 16 Utility 42 | . 1 . . . . . . . 2 1 . . 2 . 2 . . 2 1 . . . 1 . 6 . . 8 . . 2 4 10 Weapon 39 | . . . . 1 . . . . 4 . . . 14 . 2 . . . 1 . . . . . 2 . . 4 . . 2 . 9 Highest Loss Streak 10 | . 1 . . 1 . . . 1 4 1 . . 8 . 1 . . 1 2 . . . 1 . 10 . . 9 . . 5 2 9 To Critical Strikes . | . . . . . . . . . . . . . . . . . . . . . . . . . . . . . . . . . . Average Backups 7 | 2 6 8 6 7 7 11 11 11 11 10 11 8 10 12 11 12 11 8 2 2 1 2 2 2 2 5 5 4 5 5 4 4 4 Power . | . 1 1 1 1 2 2 1 1 1 1 1 . . . 2 3 1 1 . . . . . . . 1 1 . 1 1 1 . . Propulsion 1 | . 3 4 2 1 2 2 2 1 1 2 1 . 1 1 1 3 3 . . . . . . . . 2 2 . 1 1 1 . . Utility 2 | . 1 2 1 2 1 2 3 3 3 5 5 3 6 5 4 4 5 2 . . . . . . . 1 . . . . . 2 3 Weapon 2 | . 1 1 1 2 2 4 4 5 4 2 2 2 1 5 2 2 1 3 1 1 1 1 1 1 . . . 1 1 1 . . . Tool/Special . | . . . . . . . . . . . . . . . . . . . . . . . . . . . . . . . . . . Unused Backups 52 | . 1 . 1 . . 5 2 6 1 . 3 . 1 1 4 . 1 10 . 1 . . . . 5 . . 3 . . 1 2 4 Power 12 | . . . . . . 2 1 . 1 . . . . . 2 . 1 3 . 1 . . . . . . . . . . . . 1 Propulsion 13 | . . . . . . 1 . 2 . . 2 . . . 1 . . 1 . . . . . . 4 . . 1 . . 1 . . Utility 18 | . 1 . 1 . . 1 . 1 . . 1 . 1 1 1 . . 5 . . . . . . 1 . . . . . . 1 3 Weapon 8 | . . . . . . 1 1 3 . . . . . . . . . 1 . . . . . . . . . 2 . . . . . Tool/Special 1 | . . . . . . . . . . . . . . . . . . . . . . . . . . . . . . . . 1 . Average Slot Usage (%) 89 | . 94 100 100 97 82 100 100 99 94 91 96 94 84 76 95 100 92 94 83 87 90 94 88 85 77 90 97 94 94 92 81 83 76 Engine 3 | . 14 14 14 14 9 4 . 9 6 2 1 12 7 . 2 5 3 . . . . . . . . . 2 2 . . . . . Core 2 | . . . . . . 4 8 . 1 6 7 . 3 7 2 . 1 4 1 . . . . . 2 5 2 1 5 4 1 . . Reactor 3 | . . . . . . . . . . . . . . . 7 6 5 5 5 5 5 5 5 5 5 5 5 4 5 4 6 4 6 Treads 5 | . 6 28 15 . . . . . . . . . . . 14 20 16 19 17 17 12 1 . . . . . . . . . . 2 Leg 4 | . . . . . . . . . 11 18 18 17 10 6 1 . . . . . 6 21 22 16 10 . . . . . . . . Wheel 4 | . 21 . 12 28 18 18 17 17 2 . . . . . . . . . . . . . . . . . . . . . . . 11 Hover 5 | . . . . . . . . . . . . . . . . . . . . . . . . . 3 26 26 25 26 30 19 24 13 Device 23 | . 8 14 14 14 18 18 25 10 24 27 27 31 22 16 23 26 26 24 23 24 21 26 25 31 29 27 30 30 31 28 30 26 24 Storage 4 | . 14 14 14 14 9 9 9 9 9 9 9 6 6 6 6 6 5 3 . . . . . . . . . . . . . . . Processor 3 | . . . . . . . . . . . . . 3 11 7 6 1 2 4 5 7 6 8 5 5 5 7 7 5 4 4 4 3 Protection 3 | . . . . . 12 18 10 9 6 . . . 4 1 . . . 4 5 9 7 6 5 5 1 . . . 5 4 . 1 . Energy Gun 7 | . 17 28 28 25 11 4 4 16 17 10 26 20 8 . 7 . . . 4 5 1 . . . . . . 3 6 9 10 2 1 Energy Cannon 4 | . . . . . . 4 9 8 6 16 . . 1 6 4 . 6 14 . . . . . . . . . 1 . . . 7 2 Ballistic Gun 3 | . 10 . . . . 8 11 1 . . 6 6 6 . 3 6 5 4 . . . . . . 5 7 . 1 3 . 3 3 4 Ballistic Cannon 2 | . . . . . . . . . . . . . 5 . 4 12 10 4 5 7 7 . . . 1 . . . . . . 2 . Launcher 1 | . . . . . 4 9 1 . . . . . . 13 . . . . . . . . . . . . . . . . . 2 . Slashing Weapon 2 | . . . . . . . . . . . . . . 1 . . 2 2 11 8 13 23 19 15 8 . . . . . . 1 . Piercing Weapon 1 | . . . . . . . . . . . . . . . 3 6 3 . . . . . . . . 10 10 10 5 4 2 . 2 Peak Build Rating 208 | 6 20 20 23 23 32 42 51 47 65 68 78 97 118 89 109 107 131 137 120 123 139 142 151 152 162 135 131 151 136 148 170 195 208 Average Rating 101 | 4 11 20 21 22 28 39 46 45 51 62 74 94 92 81 101 106 115 123 117 120 129 140 147 151 136 126 129 132 135 144 161 184 170 On Entrance 92 | . 6 20 20 23 22 32 42 47 45 61 68 78 97 53 89 107 107 130 120 119 123 139 141 151 152 122 125 129 136 135 145 163 185 Avg Prop Armor Cover (%) 8 | . . . . . . . . . . . . . . . . . . . . . 7 8 . . 3 . . . . . . 1 10 Naked Turns 23 | . . . . . . . . . . . . . . . . . . . . . . . . . . . . . . . . . 23 Heaviest Build 140 | 13 15 15 30 30 40 47 49 49 52 54 69 71 97 78 76 79 131 140 87 95 91 72 65 62 73 45 48 81 57 57 67 111 122 Greatest Support 126 | 26 40 40 40 20 20 20 20 20 35 38 47 66 66 50 93 92 92 126 125 125 125 110 125 120 115 59 60 71 65 88 94 104 120 Greatest Overweight (x) 13 | . . . 1 1 1 2 2 2 13 1 1 1 1 1 1 . 1 1 . . 2 . . . 5 . . 1 . . . 1 3 Average Overweight (x) . | . . . . 1 1 1 2 1 1 1 1 1 . . . . . . . . . . . . . . . . . . . . . Largest Inventory Capacity 15 | 8 8 8 15 15 15 15 15 15 15 15 15 15 15 15 15 15 15 15 5 5 5 5 5 5 5 5 5 5 5 5 5 5 5 Average Capacity 10 | 7 8 8 9 15 15 15 15 15 15 15 15 15 15 15 15 15 15 11 5 5 5 5 5 5 5 5 5 5 5 5 5 5 5 Most Carried 15 | 5 8 8 9 12 12 15 15 15 15 15 15 13 15 15 15 15 15 15 5 5 5 5 5 5 5 5 5 5 5 5 5 5 5 Average Carried 9 | 2 7 7 8 10 10 14 14 14 14 13 14 11 13 14 14 15 14 11 4 4 4 5 4 5 4 4 4 4 5 5 4 4 4 Final Capacity 15 | 8 8 8 15 15 15 15 15 15 15 15 15 15 15 15 15 15 15 5 5 5 5 5 5 5 5 5 5 5 5 5 5 5 5 Final Carried 15 | 5 8 8 9 12 11 15 15 15 13 14 14 12 15 15 15 15 15 5 5 5 5 5 5 5 5 5 5 5 5 5 5 5 3 Transmogrified Parts 175 | . . . . . . . . . 7 11 8 2 19 5 14 1 5 18 4 5 7 2 3 3 10 2 5 3 1 . 2 17 21 Integrity Recovered 3530 | . . . . . . . . . 218 206 134 40 912 64 178 1 60 366 112 112 2 2 31 156 48 2 15 44 32 . 32 209 554 Class Distribution -------------------- 28% | Skirmisher 23% | Mutant 7% | Gunner 6% | Tank 4% | Commander-Skirmisher 4% | Scavenger-Skirmisher 3% | Gladiator 3% | Scavenger-Mutant 3% | Assassin Dominant Class ---------------- Mutant | -10/Materials Mutant | -10/Mines Mutant | -10/Exiles Mutant | -9/Mines Mutant | -8/Materials Skirmisher | -8/Garrison Commander-Skirmisher | -8/Materials Commander-Skirmisher | -8/Storage Skirmisher | -8/Garrison Skirmisher | -8/Recycling Gunner | -8/Scraptown Skirmisher | -6/Factory Skirmisher | -6/Garrison Skirmisher | -6/Factory Skirmisher | -6/Garrison Assassin | -6/Factory Assassin | -6/DSF Tank | -5/Factory Mutant | -5/Upper Caves Mutant | -5/Upper Caves Mutant | -5/Zhirov Mutant | -4/Proximity Caves Gladiator | -4/Factory Commander-Mutant | -4/Waste Mutant | -4/Factory Sprinter | -4/Upper Caves Gladiator | -4/Upper Caves Commander-Gladiator | -4/Warlord Scavenger-Mutant | -3/Proximity Caves Scavenger-Mutant | -3/Research Scavenger-Skirmisher | -3/DSF Tank | -2/Research Gunner | -1/Access Resources | -11 -10 -10 -10 -9 -8 -8 -8 -8 -8 -8 -8 -6 -6 -6 -6 -6 -6 -5 -5 -5 -5 -4 -4 -4 -4 -4 -4 -4 -3 -3 -3 -2 -1 ----------- Run | Yrd Mat Min Exi Min Mat Gar Mat Sto Gar Rec Scr Fac Gar Fac Gar Fac DSF Fac Upp Upp Zhi Pro Fac Was Fac Upp Upp War Pro Res DSF Res Acc Matter Collected 12007 | 261 24 36 80 10 46 215 658 125 262 63 259 . 1320 46 1233 . 618 383 880 766 . 100 90 20 606 291 128 791 . . 244 697 1755 Remotely 20 | . . . . . . . . . . . . . . . . . . . . . . . 20 . . . . . . . . . . Salvage Created 14508 | 44 167 135 . 100 108 15 347 324 1301 60 . . 1230 90 1329 . 516 729 361 159 470 413 427 . 1057 129 25 530 72 . 611 1269 2490 Parts 655 | 6 11 4 . 10 5 . 19 11 63 3 . . 51 17 83 . 19 26 9 8 4 21 18 . 51 6 1 19 4 . 33 39 114 Haulers Intercepted 12 | . . . . . . . 1 2 . . . . . . . . . 1 . . . . 1 . 2 . . . . . . 3 2 Recyclers Shooed 5 | . . . . 1 . . 1 . . . . . . . . . . 2 . . . . . . . . . . . . . . 1 Parts Field Recycled . | . . . . . . . . . . . . . . . . . . . . . . . . . . . . . . . . . . Retrieved Matter . | . . . . . . . . . . . . . . . . . . . . . . . . . . . . . . . . . . Parts Self-Destructed 76 | . . . . . . . . . . . . . . . . . . . 22 14 4 21 . . . 6 5 . 4 . . . . Prevented 6 | . . . . . . . . . . . . . . . . . . . 4 . . . . . . . 2 . . . . . . Parts Restored . | . . . . . . . . . . . . . . . . . . . . . . . . . . . . . . . . . . Kills | -11 -10 -10 -10 -9 -8 -8 -8 -8 -8 -8 -8 -6 -6 -6 -6 -6 -6 -5 -5 -5 -5 -4 -4 -4 -4 -4 -4 -4 -3 -3 -3 -2 -1 ------- Run | Yrd Mat Min Exi Min Mat Gar Mat Sto Gar Rec Scr Fac Gar Fac Gar Fac DSF Fac Upp Upp Zhi Pro Fac Was Fac Upp Upp War Pro Res DSF Res Acc Combat Hostiles Destroyed 223 | . 5 3 . 3 1 . 5 4 33 1 . . 25 3 26 . 9 12 5 5 . 7 3 . 17 4 1 10 2 . 10 9 20 Melee 33 | . . . . . . . . . . . . . 1 1 1 . 1 . 3 3 . 7 3 . 6 1 1 . . . 1 . 4 Guns 104 | . 5 3 . 3 . . 2 2 24 . . . 16 . 7 . 3 1 . 2 . . . . 9 3 . 3 2 . 9 3 7 Cannons 68 | . . . . . . . 3 2 7 1 . . 7 . 13 . 5 10 2 . . . . . 1 . . 6 . . . 3 8 AOE 9 | . . . . . 1 . . . . . . . 1 2 4 . . . . . . . . . 1 . . . . . . . . Classes Destroyed 24 | 1 2 . . 1 . . 3 . 5 . . . 4 1 . . 1 2 . . . . 1 . . . . 2 . . . . 1 Worker 5 | . . . . . . . . . . . . . . . . . . 1 . . . . . . 1 . . . . . . . 3 Builder 6 | . . . . 1 . . . . . . . . . 2 . . . 2 . . . . . . . . . . . . . . 1 Tunneler 5 | 2 1 . . 1 . . . . . . . . . 1 . . . . . . . . . . . . . . . . . . . Hauler 12 | . . . . . . . 1 2 . . . . . . . . . 1 . . . . 1 . 2 . . . . . . 3 2 Recycler 11 | . . . . . . . . . . . . . . . . . . . . . . . 1 . 1 . . . . . . 2 7 Mechanic 1 | . . . . . . . . . . . . . . . . . . . . . . . . . . . . 1 . . . . . Operator 1 | . . . . . . . . . . . . . . 1 . . . . . . . . . . . . . . . . . . . Watcher 5 | . . . . . . . . . . . . . . . . . . 3 . . . . . . . . . . . . . 2 . Swarmer 56 | . 3 . . 2 . . . . 6 . . . 8 2 4 . . . . 4 . 3 . . 7 4 1 . 2 . . 4 6 Cutter 6 | . . . . . . . . . 2 . . . . . . . . . . . . . . . . . . . . . 4 . . Saboteur 2 | . . . . . . . . . . . . . 2 . . . . . . . . . . . . . . . . . . . . Grunt 61 | . 2 3 . 1 3 . 3 . 12 . . . 8 . 7 . 4 6 3 1 . . 2 . 1 . . 1 . . 3 1 . Brawler 3 | . . . . . . . . . . . . . . . . . . . 1 . . . . . . . . 2 . . . . . Duelist 4 | . . . . . . . 1 . . . . . 1 . . . 1 . . . . . . . . . . 1 . . . . . Protector 4 | . . . . . . . . . . . . . 1 . . . . . . . . . . . . . . 3 . . . . . Sentry 25 | . . . . . . . 1 4 4 1 . . . . 6 . . 3 1 . . 1 1 . . . . . . . . 1 2 Demolisher 1 | . . . . . . . . . . . . . 1 . . . . . . . . . . . . . . . . . . . . Specialist 5 | . . . . . . . . . 2 . . . . . . . 1 . . . . . . . . . . . . . 2 . . Hunter 14 | . . . . . . . . . 2 . . . 1 . 3 . . . . . . 2 . . 3 . . . . . . 2 1 Programmer 35 | . . . . . . . . . 4 . . . 1 1 5 . 2 3 . . . . . . 6 . . 1 . . 1 . 11 Heavy 1 | . . . . . . . . . . . . . . . . . 1 . . . . . . . . . . . . . . . . Behemoth 4 | . . . . . . . . . . . . . 2 . 1 . . . . . . 1 . . . . . . . . . . . Executioner 3 | . . . . . . . . . . . . . . . . . . . . . . . . . . . . 2 . . . 1 . Decomposer 1 | . . . . . . . . . . . . . . . . . . . . . . . . . . 1 . . . . . . . Savage 1 | . . . . . . . . . 1 . . . . . . . . . . . . . . . . . . . . . . . . Dragon 1 | . . . . . . . . . . . . . . . . . . . . . . . . . . . . . . . . . 1 Best Kill Streak 9 | 2 3 1 . 2 1 . 3 2 9 1 . . 6 6 5 . 5 5 2 4 . 5 2 . 9 4 1 5 2 . 7 4 6 Combat Bots Only 9 | . 3 1 . 2 1 . 2 2 9 1 . . 6 2 5 . 5 4 2 4 . 5 2 . 9 4 1 5 2 . 7 4 6 Max Kills in Single Turn 5 | 1 1 1 . 1 1 . 1 1 2 1 . . 2 5 4 . 1 2 1 2 . 1 1 . 1 1 1 1 1 . 2 1 2 Gunslinging 1 | . . . . . . . . . . . . . 1 . . . . . . . . . . . . . . . . . . . . Exploded 4 | . . . . . 1 . . . . . . . 1 2 4 . . . . . . . . . 1 . . . . . . . . Melee 2 | . . . . . . . . . . . . . 1 1 1 . 1 . 1 2 . 1 1 . 1 1 1 . . . 1 . 1 Uniques/NPCs Destroyed . | . . . . . . . . . . . . . . . . . . . . . . . . . . . . . . . . . . Combat | -11 -10 -10 -10 -9 -8 -8 -8 -8 -8 -8 -8 -6 -6 -6 -6 -6 -6 -5 -5 -5 -5 -4 -4 -4 -4 -4 -4 -4 -3 -3 -3 -2 -1 -------- Run | Yrd Mat Min Exi Min Mat Gar Mat Sto Gar Rec Scr Fac Gar Fac Gar Fac DSF Fac Upp Upp Zhi Pro Fac Was Fac Upp Upp War Pro Res DSF Res Acc Hostile Shots Fired 2350 | . 31 9 . 10 9 . 5 12 143 4 . . 250 5 173 . 38 94 35 19 . 69 26 . 309 32 . 108 7 . 91 147 724 Missed 805 | . 6 3 . 3 4 . 1 3 42 . . . 72 1 58 . 13 25 8 8 . 30 9 . 110 10 . 35 5 . 33 66 260 Hits 1545 | . 25 6 . 7 5 . 4 9 101 4 . . 178 4 115 . 25 69 27 11 . 39 17 . 199 22 . 73 2 . 58 81 464 Melee 41 | . . . . . . . . . 3 . . . 6 . . . . . 1 . . . . . . . . 14 . . 12 3 2 Projectile 1504 | . 25 6 . 7 5 . 4 9 98 4 . . 172 4 115 . 25 69 26 11 . 39 17 . 199 22 . 59 2 . 46 78 462 AOE 11 | . . . . . . . . . 2 . . . 4 . . . . . . . . . . . 1 . . . . . . 2 2 Critical Strikes 75 | . 2 1 . . 1 . 1 1 9 . . . 6 1 2 . 1 4 1 . . . 1 . 4 . . 6 . . 8 3 23 Actively Blocked 18 | . . . . . . . . . . . . . . . . . . . . . . . . . . . . 6 . . 8 3 1 Part Disruptions 3 | . . . . . . . . . . . . . . . . . . . . . . . . . . . . . . . . . 3 Damage Taken 29863 | . 288 73 . 48 124 . 99 158 1766 60 . . 3880 146 1839 . 253 1428 552 131 . 493 389 . 3242 346 . 2081 51 . 1397 2220 8799 Core 4406 | . 26 30 . 10 22 . 13 . 234 . . . 428 14 266 . . 104 57 . . 24 . . 367 44 . 538 . . 208 388 1633 Absorbed by Shields 2081 | . . . . . . . . . . . . . . . . . 181 . 16 40 . 83 . . . . . 225 . . . . 1536 Reduced by Siege Mode 7 | . . . . . . . . . . . . . . . . . . 7 . . . . . . . . . . . . . . . Redirected to Shielding 76 | . . . . . . . . . . . . . 11 . . . . 40 . . . . . . . . . . . . . . 25 Ignored by Resistances 465 | . . . . . . . . . 24 . . . 226 . . . 72 48 . . . . . . . . . 54 . . . . 41 Regen/Repaired (Parts) 1335 | . . . . . . . . . . . . . . . . . . . . . . . 102 . 1175 . . . . . . 58 . Core Remaining (%) 69 | 100 . . . 82 . . . . . . 57 . . . . . 19 . . . . 81 . . . . . . 40 . 84 90 . Volleys Fired 662 | 2 22 11 . 12 6 20 16 18 78 4 . . 75 5 52 . 27 55 9 3 . . . . 39 7 . 42 3 . 21 44 91 Largest 7 | 2 2 2 . 2 2 2 3 3 3 3 . . 5 2 4 . 7 7 2 3 . . . . 4 2 . 3 2 . 4 5 5 Hottest 548 | 70 100 100 . 100 80 113 168 184 184 221 . . 302 105 320 . 517 548 125 190 . . . . 129 40 . 159 119 . 268 321 356 Shots Fired 1669 | 4 43 22 . 19 8 41 48 54 210 8 . . 239 10 164 1 82 159 11 8 . . . . 63 14 . 59 6 . 65 142 189 Gun 1032 | 4 43 22 . 19 3 36 32 37 157 2 . . 166 . 87 1 30 20 2 3 . . . . 59 14 . 36 6 . 65 63 125 Cannon 620 | . . . . . . 5 16 17 53 6 . . 70 5 75 . 52 139 9 5 . . . . 4 . . 23 . . . 77 64 Launcher 13 | . . . . . 5 . . . . . . . 1 5 2 . . . . . . . . . . . . . . . . . . Special 4 | . . . . . . . . . . . . . 2 . . . . . . . . . . . . . . . . . . 2 . Kinetic 692 | 2 13 . . . . 20 20 1 14 . . . 161 . 66 . 75 62 9 5 . . . . 59 14 . 12 3 . 17 33 106 Thermal 790 | 2 30 22 . 19 3 21 16 51 181 4 . . 73 2 84 1 7 97 2 3 . . . . 4 . . 10 3 . 48 46 61 Explosive 13 | . . . . . 5 . . . . . . . 1 5 2 . . . . . . . . . . . . . . . . . . Electromagnetic 133 | . . . . . . . 12 2 15 4 . . 2 3 12 . . . . . . . . . . . . . . . . 61 22 Entropic 37 | . . . . . . . . . . . . . . . . . . . . . . . . . . . . 37 . . . . . Robot Hit Streak 20 | 1 5 6 . 6 3 2 14 20 17 10 . . 20 1 20 . 8 9 6 7 . . . . 6 5 . 8 2 . 6 12 11 Robot Miss Streak 12 | 1 5 2 . 2 1 1 2 2 4 . . . 12 2 4 . 2 3 1 2 . . . . 3 1 . 2 1 . 5 4 4 Penetration Max 2 | . . . . . . . . . . . . . . . 1 . . . . . . . . . 2 . . 1 . . 1 1 1 Secondary Targets 12 | . . . . . . . . . 2 . . . 5 . . . . . . . . . . . . 1 . 1 . . 2 . 1 Max Gunslinging Chain 1 | . . . . . . . . . 1 . . . 1 . . . . . . . . . . . . 1 . 1 . . 1 . 1 Capacitor 5 | . . . . . . . . . . . . . . . . . . . . . . . . . . . . . . . . . 5 Shots Hit Robots 1099 | 2 21 14 . 12 4 3 36 35 113 8 . . 149 2 82 . 48 72 18 7 10 22 15 . 75 14 1 58 3 . 40 97 138 Core Hits 466 | 2 10 8 . 6 8 2 10 11 48 1 . . 76 7 43 . 15 29 7 5 4 10 6 . 27 4 1 23 2 . 18 30 53 Critical Kills 16 | . . . . . . . . . . . . . 4 . 3 . 2 2 2 1 . . . . 1 . 1 . . . . . . Critical Parts Destroyed 21 | . . . . . . . . . . . . . 3 . 1 . 3 6 2 . . . . . 3 . . 1 . . . . 2 Critical Strikes 99 | . 1 1 . 2 . . . 1 11 . . . 11 . 9 . 8 10 6 2 . 3 3 . 11 . 1 13 . . . 3 3 Burn 19 | . 1 1 . 2 . . . 1 11 . . . . . . . . . 1 1 . . . . . . . . . . . 1 . Meltdown 2 | . . . . . . . . . . . . . . . 1 . . 1 . . . . . . . . . . . . . . . Destroy 35 | . . . . . . . . . . . . . 7 . 3 . 5 8 4 1 . . . . 4 . . 1 . . . . 2 Blast 10 | . . . . . . . . . . . . . 4 . 3 . 2 1 . . . . . . . . . . . . . . . Corrupt 2 | . . . . . . . . . . . . . . . . . . . . . . . . . . . . . . . . 2 . Smash 1 | . . . . . . . . . . . . . . . . . . . . . . . . . . . 1 . . . . . . Sever 14 | . . . . . . . . . . . . . . . . . . . 1 . . 3 3 . 7 . . . . . . . . Impale 5 | . . . . . . . . . . . . . . . 2 . 1 . . . . . . . . . . 1 . . . . 1 Sunder 11 | . . . . . . . . . . . . . . . . . . . . . . . . . . . . 11 . . . . . Melee Attacks 230 | . . . . . . . . . . . . . . 2 9 . 1 1 10 4 10 28 16 . 51 6 1 21 . . 1 9 60 Impact 4 | . . . . . . . . . . . . . . 2 . . . . . . . . . . . 1 1 . . . . . . Slashing 153 | . . . . . . . . . . . . . . . 1 . . 1 10 4 10 28 16 . 42 . . . . . . 9 32 Piercing 73 | . . . . . . . . . . . . . . . 8 . 1 . . . . . . . 9 5 . 21 . . 1 . 28 Sneak Attacks 29 | . . . . . . . . . . . . . . . . . 1 . 1 . . 1 3 . 6 1 . . . . 1 3 12 Combat Hostiles 3 | . . . . . . . . . . . . . . . . . . . 1 . . 1 . . 1 . . . . . . . . Follow-up Attacks 37 | . . . . . . . . . . . . . . . . . . . 2 1 1 9 4 . 12 . . 8 . . . . . Damage Inflicted 40017 | 25 271 192 . 146 245 64 840 700 2484 192 . . 4887 414 2707 . 1588 3413 711 283 1075 1329 1154 . 3443 410 54 2757 80 . 1366 3498 5689 Guns 15449 | 25 271 192 . 146 25 33 501 476 1832 48 . . 3148 . 657 . 422 123 38 47 . . . . 1232 219 . 971 80 . 1277 1208 2478 Cannons 13038 | . . . . . . 31 339 224 652 144 . . 1539 27 1432 . 1101 3164 107 63 . . . . 132 . . 1305 . . . 1659 1119 Explosions 1435 | . . . . . 214 . . . . . . . 200 352 401 . . 126 . . . . . . . . . . . . . 142 . Melee 10089 | . . . . . . . . . . . . . . 35 217 . 65 . 566 173 1075 1329 1154 . 2079 191 54 481 . . 89 489 2092 Ramming 6 | . . . . . 6 . . . . . . . . . . . . . . . . . . . . . . . . . . . . Kinetic 12859 | . 24 . . . . . 212 . 228 . . . 3551 . 909 . 1478 1037 107 63 . . . . 1284 219 . 395 56 . 403 727 2166 Thermal 12157 | 25 247 192 . 146 25 64 339 700 2149 110 . . 1119 137 1081 . 45 2345 38 47 . . . . 80 . . 207 24 . 874 989 1174 Explosive 939 | . . . . . 214 . . . . . . . 200 242 283 . . . . . . . . . . . . . . . . . . Electromagnetic 2293 | . . . . . . . 289 . 107 82 . . 17 . 217 . . 31 . . . . . . . . . . . . . 1293 257 Impact 183 | . . . . . . . . . . . . . . 35 . . . . . . . . . . . 94 54 . . . . . . Slashing 7637 | . . . . . . . . . . . . . . . . . . . 566 173 1075 1329 1154 . 1903 . . . . . . 489 948 Piercing 2269 | . . . . . . . . . . . . . . . 217 . 65 . . . . . . . 176 97 . 481 . . 89 . 1144 Entropic 1674 | . . . . . . . . . . . . . . . . . . . . . . . . . . . . 1674 . . . . . Highest Corruption 38 | . 2 2 2 2 . . . . 6 . . . 7 7 10 10 11 3 . . . . . . 12 12 . 1 1 . 5 17 38 Average Corruption 8 | . 2 2 2 2 . . . . 4 . . . 6 7 9 10 10 2 . . . . . . 9 10 . 1 1 . 3 16 20 Corruption Purged 9 | . . . . . . . . . . . . . . . . . . . . . . . . . . 4 . . . . . . 5 Corruption Blocked . | . . . . . . . . . . . . . . . . . . . . . . . . . . . . . . . . . . Effects 237 | . 1 7 3 8 . . . . 3 . . . 40 28 34 6 11 12 . . . . . . 14 3 . . 2 . 1 12 52 Message Errors 61 | . . . 2 . . . . . . . . . 9 6 8 2 3 3 . . . . . . 2 3 . . 1 . 1 5 16 Matter Fused 44 | . 1 4 . 1 . . . . . . . . 5 9 6 . 2 . . . . . . . 4 . . . 1 . . 3 8 Heat Flow Errors 26 | . . . . . . . . . 1 . . . 3 5 5 . 1 2 . . . . . . . . . . . . . 1 8 Energy Discharges 29 | . . . . 1 . . . . 1 . . . 7 4 4 1 2 1 . . . . . . 2 . . . . . . 2 4 Parts Rejected 5 | . . . . . . . . . . . . . 1 . . . 1 . . . . . . . . . . . . . . . 3 Parts Fused 1 | . . . . 1 . . . . . . . . . . . . . . . . . . . . . . . . . . . . . Data Loss (minor) 25 | . . 1 1 3 . . . . . . . . 3 1 5 1 . 3 . . . . . . 2 . . . . . . 1 4 Data Loss (major) 16 | . . 1 . 1 . . . . 1 . . . 8 . 1 1 . 1 . . . . . . 2 . . . . . . . . Misfires 11 | . . . . . . . . . . . . . 2 2 3 1 . 1 . . . . . . . . . . . . . . 2 Alerts 7 | . . 1 . 1 . . . . . . . . 1 1 1 . 1 1 . . . . . . . . . . . . . . . Misdirections 6 | . . . . . . . . . . . . . . . . . . . . . . . . . 1 . . . . . . . 5 Weapon Failures 6 | . . . . . . . . . . . . . 1 . 1 . 1 . . . . . . . 1 . . . . . . . 2 Overload Shots 2 | . . . . . . . . . . . . . . . . . . . . . . . . . . . . . . . . . 2 Overflow Damage 2024 | . . . . . . . . . 16 . . . 3 86 34 . 80 223 99 . 292 76 129 . 155 107 . 111 . . . 154 459 Projectiles 473 | . . . . . . . . . 16 . . . 3 . 34 . . 215 . . . . . . 17 . . 90 . . . 82 16 Explosions 94 | . . . . . . . . . . . . . . 86 . . . 8 . . . . . . . . . . . . . . . Melee 1457 | . . . . . . . . . . . . . . . . . 80 . 99 . 292 76 129 . 138 107 . 21 . . . 72 443 Knockbacks 35 | . . . . . . . . . . . . . 5 . 5 . 8 9 1 2 . . . . . . . . . . . 4 1 Impact . | . . . . . . . . . . . . . . . . . . . . . . . . . . . . . . . . . . Kinetic 34 | . . . . . . . . . . . . . 5 . 4 . 8 9 1 2 . . . . . . . . . . . 4 1 Secondary 1 | . . . . . . . . . . . . . . . 1 . . . . . . . . . . . . . . . . . . Self-Inflicted Damage 265 | . . . . . 45 . . . 39 . . . . 75 58 . . 48 . . . . . . . . . . . . . . . Shots 9 | . . . . . 3 . . . 1 . . . . 2 1 . . 2 . . . . . . . . . . . . . . . Rammed 1 | . . . . . 1 . . . . . . . . . . . . . . . . . . . . . . . . . . . . Targets Rammed 1 | . . . . . 1 . . . . . . . . . . . . . . . . . . . . . . . . . . . . Kicked . | . . . . . . . . . . . . . . . . . . . . . . . . . . . . . . . . . . Crushed . | . . . . . . . . . . . . . . . . . . . . . . . . . . . . . . . . . . Highest Temperature 563 | 30 90 30 . 46 5 10 . 294 386 111 . . 443 229 563 . 228 423 54 162 . . . . 18 4 . 49 . . . 195 384 Average Temperature 99 | 18 35 14 . 17 5 7 . 88 114 44 . . 123 91 96 . 94 125 32 69 . . . . 10 4 . 13 . . . 69 98 Received Heat Transfer 4527 | . 135 60 . 6 63 . 18 72 474 18 . . 1095 45 819 . 98 423 231 7 . 18 54 . 156 9 . 201 . . 147 207 171 Effects 7 | . . . . . . . . . . . . . 1 1 5 . . . . . . . . . . . . . . . . . . Shutdowns 3 | . . . . . . . . . . . . . 1 . 2 . . . . . . . . . . . . . . . . . . Energy Bleed 1 | . . . . . . . . . . . . . . 1 . . . . . . . . . . . . . . . . . . . Interference 1 | . . . . . . . . . . . . . . . 1 . . . . . . . . . . . . . . . . . . Short Circuit 2 | . . . . . . . . . . . . . . . 2 . . . . . . . . . . . . . . . . . . Siege Activations 1 | . . . . . . . . . . . . . . . . . . 1 . . . . . . . . . . . . . . . Total Turns 12 | . . . . . . . . . . . . . . . . . . 12 . . . . . . . . . . . . . . . Longest Duration 12 | . . . . . . . . . . . . . . . . . . 12 . . . . . . . . . . . . . . . Martial Activations . | . . . . . . . . . . . . . . . . . . . . . . . . . . . . . . . . . . Shielding Activations . | . . . . . . . . . . . . . . . . . . . . . . . . . . . . . . . . . . Robots Disrupted 3 | . . . . . . . . . . . . . 1 . . . . . . . . . . . . . . . . . . . 2 Combat Hostiles 2 | . . . . . . . . . . . . . 1 . . . . . . . . . . . . . . . . . . . 1 Robots Corrupted 4 | . . . . . . . . . . . . . . . . . . . . . . . . . . . . . . . . 3 1 Combat Hostiles 4 | . . . . . . . . . . . . . . . . . . . . . . . . . . . . . . . . 3 1 Parts Fried 11 | . . . . . . . . . . . . . . . . . . . . . . . . . . 1 . . . . . 8 2 Impact Corruptions 4 | . . . . . . . . . . . . . . . . . . . . . . . . . . 4 . . . . . . . Robots Melted 5 | . . . . . . . . . 2 . . . . . 1 . . 1 . . . . . . . . . 1 . . . . . Combat Hostiles 5 | . . . . . . . . . 2 . . . . . 1 . . 1 . . . . . . . . . 1 . . . . . Parts Melted 39 | . 2 3 . 2 . . . 7 9 1 . . 5 . 1 . . 3 1 . . . . . 1 . . 1 . . . . 3 Heat Transferred 18328 | 74 777 629 . 555 74 111 407 1369 4581 200 . . 1567 137 1588 . 37 1895 148 148 . . . . 150 . . 256 37 . 1073 1379 1136 Parts Sabotaged 8 | . . . . . . . . . . . . . 7 . . . . . . . . . . . . . . . . . . . 1 Parts Stolen . | . . . . . . . . . . . . . . . . . . . . . . . . . . . . . . . . . . Parts Stripped 11 | . . . . . . . . . . . . . . . . . . . . . . . . . . . . . . . . . 11 Power Chain Reactions 3 | . . . . . . . . . . . . . . . 1 . . 1 . . . . . . . . . . . . . 1 . Alert | -11 -10 -10 -10 -9 -8 -8 -8 -8 -8 -8 -8 -6 -6 -6 -6 -6 -6 -5 -5 -5 -5 -4 -4 -4 -4 -4 -4 -4 -3 -3 -3 -2 -1 ------- Run | Yrd Mat Min Exi Min Mat Gar Mat Sto Gar Rec Scr Fac Gar Fac Gar Fac DSF Fac Upp Upp Zhi Pro Fac Was Fac Upp Upp War Pro Res DSF Res Acc Maximum Alert Level 4 | . . . . . . 2 2 2 4 2 . . 3 2 4 2 2 2 . . . . . . 1 . . . . . 1 2 3 Low Security (%) 24 | 100 100 100 . 100 100 13 . . . . . 100 22 . . . . . . . . . 100 100 33 . . . . 100 79 23 2 Level 1 23 | . . . . . . 25 64 73 2 4 . . 28 . 11 . 45 65 . . . . . . 66 . . . . . 20 30 8 Level 2 30 | . . . . . . 61 35 26 22 95 . . 29 100 14 100 54 34 . . . . . . . . . . . . . 45 12 Level 3 16 | . . . . . . . . . 36 . . . 19 . 54 . . . . . . . . . . . . . . . . . 76 Level 4 4 | . . . . . . . . . 38 . . . . . 18 . . . . . . . . . . . . . . . . . . Level 5 . | . . . . . . . . . . . . . . . . . . . . . . . . . . . . . . . . . . High Security . | . . . . . . . . . . . . . . . . . . . . . . . . . . . . . . . . . . Max Security . | . . . . . . . . . . . . . . . . . . . . . . . . . . . . . . . . . . Sterilizations 2 | . . . . . . . . . . . . . . . . . 1 . . . . . . . . . . . . . 1 . . Peak Influence 1509 | 5 107 84 . 102 105 684 661 604 1509 678 . 14 1047 602 1171 614 600 465 . . . . 122 11 383 . . . . 43 237 483 982 Initial 678 | . 3 34 . . 29 68 333 275 388 678 . . 9 549 294 614 359 315 . . . . 77 11 . . . . . 43 16 132 225 Average 459 | 1 19 30 . 18 53 424 402 354 1009 523 . . 438 498 818 568 474 364 . . . . 63 . 231 . . . . 33 99 343 798 Influence Increases 13526 | 10 282 168 . 156 116 616 538 861 1361 26 . 14 1258 251 967 . 241 640 330 120 15 314 197 . 919 135 20 901 145 9 281 832 1803 Destroy 0b10 Robot/C 6140 | . 160 120 . 80 60 . 260 360 780 20 . . 660 60 560 . 180 240 260 100 . 180 60 . 480 80 20 580 40 . 200 200 400 Destroy 0b10 Robot/NC 360 | 10 10 . . 10 . . 25 25 . . . . 20 20 . . . 35 5 . 15 . 15 . 30 . . 30 . . . 35 75 Destroy Leader 928 | . 32 30 . 20 10 . 86 138 30 . . . 50 20 50 . 40 68 30 20 . 40 12 . 86 10 . . . . 30 40 86 Allied During Kill 1050 | . 6 17 . 26 17 . 133 313 106 . . . 20 . 20 . . . 35 . . 19 1 . 74 . . 246 . . . 12 5 Successful Hack 194 | . 20 . . 5 4 21 28 8 12 6 . 14 . . 16 . . . . . . . 28 . 21 . . . . 9 . 2 . Select Force Hacks 30 | . . . . . . . . . . . . . . . . . . . . . . . . . . . . . . . . 30 . Disable Machine 510 | . 15 . . . . 30 . 15 15 . . . 15 105 . . 15 150 . . . . . . 60 . . . . . 15 30 45 Anti-Garrison Action 1750 | . . . . . . 550 . . 350 . . . 300 . 200 . . . . . . . . . . . . . . . . 150 200 Destroy Structure 891 | . 9 1 . . 25 15 6 2 53 . . . 58 46 76 . 6 102 . . . . 36 . 78 . . . . . 6 78 294 Partial Spotted 90 | . 15 . . . . . . . . . . . . . . . . . . . . . . . 30 . . . . . . 30 15 Lose Combat Pursuer 1215 | . 15 . . 15 . . . . 15 . . . 135 . 45 . . 45 . . . 75 45 . 60 45 . 45 105 . 30 225 315 Miscellaneous 368 | . . . . . . . . . . . . . . . . . . . . . . . . . . . . . . . . . 368 Influence Decreases 12559 | 5 198 247 10 80 87 37 569 916 450 1151 384 . 225 878 216 657 155 839 407 277 182 190 287 34 600 179 153 594 529 52 66 693 1212 Entered New Map 5427 | . 2 55 10 . 47 37 351 378 210 831 384 . 5 498 126 557 155 285 149 63 167 . 47 23 . 119 53 142 449 22 6 105 151 Time Decay 4876 | 5 186 172 . 74 40 . 198 198 . 310 . . . 380 . 100 . 534 238 214 15 130 170 11 360 60 100 162 80 30 . 538 571 Lost Part 1236 | . 10 . . 6 . . . 10 120 10 . . 190 . 70 . . 20 20 . . . 10 . 110 . . 140 . . 60 50 410 Lost Ally 870 | . . 20 . . . . 20 180 120 . . . 30 . 20 . . . . . . 60 60 . 130 . . 150 . . . . 80 Purge Threat 150 | . . . . . . . . 150 . . . . . . . . . . . . . . . . . . . . . . . . . Squads Dispatched 51 | . . . . 1 3 . 1 2 . . . . . 4 . . 1 9 . . . . . . 11 . . . 1 . 2 2 14 Investigation 11 | . . . . 1 1 . . . . . . . . 2 . . . . . . . . . . 5 . . . . . . 1 1 Extermination 13 | . . . . . . . . . . . . . . 1 . . . 4 . . . . . . 3 . . . . . . . 5 Reinforcement 15 | . . . . . 2 . . 1 . . . . . 1 . . 1 3 . . . . . . 1 . . . . . 2 1 3 Assault 10 | . . . . . . . 1 . . . . . . . . . . 2 . . . . . . 2 . . . 1 . . . 4 Garrison 2 | . . . . . . . . 1 . . . . . . . . . . . . . . . . . . . . . . . . 1 Intercept . | . . . . . . . . . . . . . . . . . . . . . . . . . . . . . . . . . . Searches Triggered . | . . . . . . . . . . . . . . . . . . . . . . . . . . . . . . . . . . Construction Impeded 1 | . . . . . . . . . . . . . . . . . . 1 . . . . . . . . . . . . . . . Haulers Reinforced 2 | . . . . . . . . . . . . . . . . . . 1 . . . . . . . . . . . . . 1 . Active Scanning Responses . | . . . . . . . . . . . . . . . . . . . . . . . . . . . . . . . . . . Cargo Convoy Interrupts 1 | . . . . . . . . . . . . . . . . . . . . . . . . . 1 . . . . . . . . Stealth | -11 -10 -10 -10 -9 -8 -8 -8 -8 -8 -8 -8 -6 -6 -6 -6 -6 -6 -5 -5 -5 -5 -4 -4 -4 -4 -4 -4 -4 -3 -3 -3 -2 -1 --------- Run | Yrd Mat Min Exi Min Mat Gar Mat Sto Gar Rec Scr Fac Gar Fac Gar Fac DSF Fac Upp Upp Zhi Pro Fac Was Fac Upp Upp War Pro Res DSF Res Acc Distress Signals 24 | . 1 . . . . . 4 3 . . . . . . . . . 4 . . . . 1 . 2 . . 2 . . . 5 2 Communications Jammed 38 | . . . . . . . . . . . . . . . . . . . . . . . . . 2 . . . . . . . 36 Distress Signals 36 | . . . . . . . . . . . . . . . . . . . . . . . . . 2 . . . . . . . 34 Times Spotted 547 | . 11 6 . 6 8 . 17 8 40 1 . . 62 7 27 . 8 22 7 5 . 11 11 . 46 10 1 99 5 . 13 34 82 Peak Tracking Total 19 | . 2 2 . 4 4 . 4 4 6 1 . . 16 4 5 . 2 6 4 4 . 4 3 . 7 4 1 19 9 . 8 8 15 Tactical Retreats 46 | . 1 . . 1 . . . . 1 . . . 6 . 1 . . 3 . . . 3 2 . 2 1 . 3 3 . 2 9 8 ECM-based Alert Blocks 2 | . . . . . . . . . . . . . 2 . . . . . . . . . . . . . . . . . . . . Traps | -11 -10 -10 -10 -9 -8 -8 -8 -8 -8 -8 -8 -6 -6 -6 -6 -6 -6 -5 -5 -5 -5 -4 -4 -4 -4 -4 -4 -4 -3 -3 -3 -2 -1 ------- Run | Yrd Mat Min Exi Min Mat Gar Mat Sto Gar Rec Scr Fac Gar Fac Gar Fac DSF Fac Upp Upp Zhi Pro Fac Was Fac Upp Upp War Pro Res DSF Res Acc Traps Triggered 17 | . 1 . . . . 2 . . 3 . . . 7 1 1 . 1 . . . . . 1 . . . . . . . . . . Indirectly . | . . . . . . . . . . . . . . . . . . . . . . . . . . . . . . . . . . Trap Hack Attempts . | . . . . . . . . . . . . . . . . . . . . . . . . . . . . . . . . . . Triggered . | . . . . . . . . . . . . . . . . . . . . . . . . . . . . . . . . . . Disarmed 6 | . . . . . . . 6 . . . . . . . . . . . . . . . . . . . . . . . . . . Reprogrammed . | . . . . . . . . . . . . . . . . . . . . . . . . . . . . . . . . . . Reused . | . . . . . . . . . . . . . . . . . . . . . . . . . . . . . . . . . . Traps Extracted . | . . . . . . . . . . . . . . . . . . . . . . . . . . . . . . . . . . Installed . | . . . . . . . . . . . . . . . . . . . . . . . . . . . . . . . . . . Triggered . | . . . . . . . . . . . . . . . . . . . . . . . . . . . . . . . . . . Machines | -11 -10 -10 -10 -9 -8 -8 -8 -8 -8 -8 -8 -6 -6 -6 -6 -6 -6 -5 -5 -5 -5 -4 -4 -4 -4 -4 -4 -4 -3 -3 -3 -2 -1 ---------- Run | Yrd Mat Min Exi Min Mat Gar Mat Sto Gar Rec Scr Fac Gar Fac Gar Fac DSF Fac Upp Upp Zhi Pro Fac Was Fac Upp Upp War Pro Res DSF Res Acc Machines Disabled 62 | . 1 . . . . 8 . 1 8 . . . 7 7 4 . 1 10 . . . . . . 4 1 . 3 . . 1 3 3 Max in Single Turn 6 | . . . . . . 1 . 1 2 . . . 1 6 1 . 1 5 . . . . . . . 1 . 1 . . 1 1 1 Garrison Access 4 | . . . . . . . . . . . . . . . . . . . . . . . . . 1 . . . . . . 2 1 Garrison Relay 17 | . . . . . . 6 . . 4 . . . 4 . 3 . . . . . . . . . . . . . . . . . . Phase Generator 2 | . . . . . . . . . 1 . . . 1 . . . . . . . . . . . . . . . . . . . . Energy Cycler 1 | . . . . . . . . . . . . . . . . . . . . . . . . . . . . . . . . . 1 Machines Repaired . | . . . . . . . . . . . . . . . . . . . . . . . . . . . . . . . . . . Machines Dismantled . | . . . . . . . . . . . . . . . . . . . . . . . . . . . . . . . . . . Machines Sabotaged . | . . . . . . . . . . . . . . . . . . . . . . . . . . . . . . . . . . Overloaded Fab Kills . | . . . . . . . . . . . . . . . . . . . . . . . . . . . . . . . . . . Hacking | -11 -10 -10 -10 -9 -8 -8 -8 -8 -8 -8 -8 -6 -6 -6 -6 -6 -6 -5 -5 -5 -5 -4 -4 -4 -4 -4 -4 -4 -3 -3 -3 -2 -1 --------- Run | Yrd Mat Min Exi Min Mat Gar Mat Sto Gar Rec Scr Fac Gar Fac Gar Fac DSF Fac Upp Upp Zhi Pro Fac Was Fac Upp Upp War Pro Res DSF Res Acc Machines Accessed 71 | . 8 1 2 1 2 3 4 6 3 5 . 1 . 3 2 2 . 4 . 1 6 . 3 . 6 . . 4 . 2 . 1 1 Terminals 42 | . 8 1 . 1 . 3 4 5 3 5 . . . . 2 1 . 2 . . . . 2 . 3 . . . . 2 . . . Fabricators 4 | . . . . . . . . . . . . . . 2 . . . . . . . . . . 2 . . . . . . . . Repair Stations 2 | . . . . . . . . . . . . . . . . . . 1 . . . . . . 1 . . . . . . . . Recycling Units . | . . . . . . . . . . . . . . . . . . . . . . . . . . . . . . . . . . Scanalyzers 5 | . . . . . 1 . . . . . . . . . . 1 . 1 . . . . 1 . . . . . . . . 1 . Garrison Access 5 | . . . . . 1 . . 1 . . . 1 . 1 . . . . . . . . . . . . . . . . . . 1 Total Hacks 180 | . 19 1 2 5 5 4 16 16 6 12 . 2 . 9 3 6 . 9 . 1 19 . 6 . 16 . . 8 . 5 . 8 2 Successful 97 | . 9 . 2 2 2 3 11 9 2 5 . 1 . 2 1 2 . 3 . 1 19 . 3 . 6 . . 8 . 2 . 3 1 Failed 82 | . 10 1 . 3 3 1 5 7 4 7 . 1 . 7 2 4 . 6 . . . . 3 . 10 . . . . 3 . 4 1 Catastrophic 7 | . . . . 1 . 1 1 . 1 1 . . . . . . . . . . . . . . 2 . . . . . . . . Database Lockouts 1 | . . . . . . . . . . . . . . . . . . . . . . . . . . . . . . . . 1 . Manual 49 | . 8 1 1 4 . . 8 3 . 8 . . . 1 . . . 3 . . . . 1 . 4 1 . . . 2 . 2 2 Terminals 105 | . 19 1 . 5 . 4 16 15 6 12 . . . . 3 1 . 5 . . . . 5 . 8 . . . . 5 . . . Fabricators 11 | . . . . . . . . . . . . . . 5 . . . . . . . . . . 6 . . . . . . . . Repair Stations 4 | . . . . . . . . . . . . . . . . . . 2 . . . . . . 2 . . . . . . . . Recycling Units . | . . . . . . . . . . . . . . . . . . . . . . . . . . . . . . . . . . Scanalyzers 19 | . . . . . 3 . . . . . . . . . . 5 . 2 . . . . 1 . . . . . . . . 8 . Garrison Access 11 | . . . . . 2 . . 1 . . . 2 . 4 . . . . . . . . . . . . . . . . . . 2 Terminal Hacks 68 | . 6 . 2 2 . 3 10 7 2 2 . . . . 1 1 . 1 . 1 19 . 1 . 1 . . 8 . 1 . . . Record 15 | . . . 1 . . . . . . . . . . . . . . . . . 7 . . . . . . 7 . . . . . Part Schematic 6 | . . . . . . . . 1 . 1 . . . . . . . . . . 4 . . . . . . . . . . . . Robot Schematic 1 | . . . . . . . . 1 . . . . . . . . . . . . . . . . . . . . . . . . . Robot Analysis 11 | . 2 . . 1 . . 3 . . 1 . . . . . . . . . . 4 . . . . . . . . . . . . Prototype ID Bank 6 | . 1 . . . . . 1 . . . . . . . . . . . . . 4 . . . . . . . . . . . . Open Door 5 | . . . . . . 1 . 1 1 . . . . . . . . . . 1 . . . . . . . 1 . . . . . Open DSF 2 | . . . . . . . . . . . . . . . . 1 . . . . . . . . . . . . . 1 . . . Branch Access Points 3 | . 1 . . . . . 1 . . . . . . . . . . . . . . . . . 1 . . . . . . . . Emergency Access Points 2 | . . . . . . 1 . . 1 . . . . . . . . . . . . . . . . . . . . . . . . Terminal Index 1 | . 1 . . . . . . . . . . . . . . . . . . . . . . . . . . . . . . . . Unreport Threat 1 | . . . . . . . . 1 . . . . . . . . . . . . . . . . . . . . . . . . . Locate Traps 5 | . . . . . . . 2 2 . . . . . . . . . . . . . . 1 . . . . . . . . . . Disarm Traps 1 | . . . . . . . 1 . . . . . . . . . . . . . . . . . . . . . . . . . . Zone Layout 6 | . 1 . . 1 . . 2 1 . . . . . . . . . 1 . . . . . . . . . . . . . . . Patrol Navigation 1 | . . . . . . 1 . . . . . . . . . . . . . . . . . . . . . . . . . . . Security Stations 1 | . . . . . . . . . . . . . . . 1 . . . . . . . . . . . . . . . . . . Proto ID Catalog 1 | . . . 1 . . . . . . . . . . . . . . . . . . . . . . . . . . . . . . Fabricator Hacks 4 | . . . . . . . . . . . . . . 1 . . . . . . . . . . 3 . . . . . . . . Network Status 2 | . . . . . . . . . . . . . . 1 . . . . . . . . . . 1 . . . . . . . . Load Schematic 1 | . . . . . . . . . . . . . . . . . . . . . . . . . 1 . . . . . . . . Build 1 | . . . . . . . . . . . . . . . . . . . . . . . . . 1 . . . . . . . . Repair Station Hacks 3 | . . . . . . . . . . . . . . . . . . 1 . . . . . . 2 . . . . . . . . Scan Component 2 | . . . . . . . . . . . . . . . . . . 1 . . . . . . 1 . . . . . . . . Repair 1 | . . . . . . . . . . . . . . . . . . . . . . . . . 1 . . . . . . . . Recycling Unit Hacks . | . . . . . . . . . . . . . . . . . . . . . . . . . . . . . . . . . . Scanalyzer 5 | . . . . . 1 . . . . . . . . . . 1 . . . . . . 1 . . . . . . . . 2 . Insert Component 2 | . . . . . . . . . . . . . . . . . . . . . . . 1 . . . . . . . . 1 . Retrieve Study 3 | . . . . . 1 . . . . . . . . . . 1 . . . . . . . . . . . . . . . 1 . Garrison Access Hacks 4 | . . . . . 1 . . 1 . . . 1 . 1 . . . . . . . . . . . . . . . . . . . Unlock Access 4 | . . . . . 1 . . 1 . . . 1 . 1 . . . . . . . . . . . . . . . . . . . Unauthorized Hacks 13 | . 3 . . . . . 1 1 . 3 . . . . . . . 1 . . . . 1 . . . . . . 1 . 1 1 Terminals 10 | . 3 . . . . . 1 1 . 3 . . . . . . . . . . . . 1 . . . . . . 1 . . . Botnet 10 | . 3 . . . . . 1 1 . 3 . . . . . . . . . . . . 1 . . . . . . 1 . . . Fabricators . | . . . . . . . . . . . . . . . . . . . . . . . . . . . . . . . . . . Repair Stations 1 | . . . . . . . . . . . . . . . . . . 1 . . . . . . . . . . . . . . . Mechanics 1 | . . . . . . . . . . . . . . . . . . 1 . . . . . . . . . . . . . . . Recycling Units . | . . . . . . . . . . . . . . . . . . . . . . . . . . . . . . . . . . Scanalyzers 1 | . . . . . . . . . . . . . . . . . . . . . . . . . . . . . . . . 1 . Extract 1 | . . . . . . . . . . . . . . . . . . . . . . . . . . . . . . . . 1 . Garrison Access 1 | . . . . . . . . . . . . . . . . . . . . . . . . . . . . . . . . . 1 Jam 1 | . . . . . . . . . . . . . . . . . . . . . . . . . . . . . . . . . 1 Data Cores Recovered 2 | . . . . . . . 2 . . . . . . . . . . . . . . . . . . . . . . . . . . Used . | . . . . . . . . . . . . . . . . . . . . . . . . . . . . . . . . . . Hacking Detections 47 | . 5 1 . 1 2 2 3 4 3 4 . . . 3 2 2 . 3 . . . . 2 . 6 . . . . 2 . 1 1 Full Trace Events 13 | . 1 . . 1 1 1 . 1 . 1 . . . 1 1 . . . . . . . . . 5 . . . . . . . . Feedback Events . | . . . . . . . . . . . . . . . . . . . . . . . . . . . . . . . . . . Feedback Blocked . | . . . . . . . . . . . . . . . . . . . . . . . . . . . . . . . . . . Robot Schematics Acquired 1 | . . . . . . . . 1 . . . . . . . . . . . . . . . . . . . . . . . . . Robots Built . | . . . . . . . . . . . . . . . . . . . . . . . . . . . . . . . . . . Authchips . | . . . . . . . . . . . . . . . . . . . . . . . . . . . . . . . . . . Time . | . . . . . . . . . . . . . . . . . . . . . . . . . . . . . . . . . . Total Robot Build Rating . | . . . . . . . . . . . . . . . . . . . . . . . . . . . . . . . . . . Part Schematics Acquired 7 | . . . . . . . . 1 . 1 . . . . . . . . . . 4 . . . . . . . . . . 1 . Parts Built . | . . . . . . . . . . . . . . . . . . . . . . . . . . . . . . . . . . Authchips . | . . . . . . . . . . . . . . . . . . . . . . . . . . . . . . . . . . Time 95 | . . . . . . . . . . . . . . . . . . . . . . . . . 95 . . . . . . . . Total Part Build Rating . | . . . . . . . . . . . . . . . . . . . . . . . . . . . . . . . . . . Part Studies Acquired 3 | . . . . . 1 . . . . . . . . . . 1 . . . . . . . . . . . . . . . 1 . Parts Repaired 1 | . . . . . . . . . . . . . . . . . . . . . . . . . 1 . . . . . . . . Time 68 | . . . . . . . . . . . . . . . . . . . . . . . . . 68 . . . . . . . . Parts Recycled . | . . . . . . . . . . . . . . . . . . . . . . . . . . . . . . . . . . Recycled Matter . | . . . . . . . . . . . . . . . . . . . . . . . . . . . . . . . . . . Retrieved Matter . | . . . . . . . . . . . . . . . . . . . . . . . . . . . . . . . . . . Retrieved Components . | . . . . . . . . . . . . . . . . . . . . . . . . . . . . . . . . . . Parts Scanalyzed 1 | . . . . . . . . . . . . . . . . . . . . . . . . . . . . . . . . 1 . Part Schematics Acquired . | . . . . . . . . . . . . . . . . . . . . . . . . . . . . . . . . . . Parts Damaged 1 | . . . . . . . . . . . . . . . . . . . . . . . . . . . . . . . . 1 . Bothacking | -11 -10 -10 -10 -9 -8 -8 -8 -8 -8 -8 -8 -6 -6 -6 -6 -6 -6 -5 -5 -5 -5 -4 -4 -4 -4 -4 -4 -4 -3 -3 -3 -2 -1 ------------ Run | Yrd Mat Min Exi Min Mat Gar Mat Sto Gar Rec Scr Fac Gar Fac Gar Fac DSF Fac Upp Upp Zhi Pro Fac Was Fac Upp Upp War Pro Res DSF Res Acc Used RIF Installer . | . . . . . . . . . . . . . . . . . . . . . . . . . . . . . . . . . . Robots Hacked 1 | . . . . . . . . . . . . . . . . . . . . . . . . . . . . . . . . 1 . Non-combat 1 | . . . . . . . . . . . . . . . . . . . . . . . . . . . . . . . . 1 . Combat . | . . . . . . . . . . . . . . . . . . . . . . . . . . . . . . . . . . Robot Hacks Applied 1 | . . . . . . . . . . . . . . . . . . . . . . . . . . . . . . . . 1 . find_recycling 1 | . . . . . . . . . . . . . . . . . . . . . . . . . . . . . . . . 1 . Relay Couplers Released 76 | . . . . . . 23 . . 15 . . . 18 . 15 . . . . . . . . . 2 . . . . . . 3 . Machine Destruction 76 | . . . . . . 23 . . 15 . . . 18 . 15 . . . . . . . . . 2 . . . . . . 3 . Fabnet Peak Effective % . | . . . . . . . . . . . . . . . . . . . . . . . . . . . . . . . . . . Robots Rewired 9 | . . . . . . 3 . . . . . . 1 . . . . . . . . . . . . . . 5 . . . . . Allies Hacked 1 | . . . . . . . . . . . . . . . . . . . . . . . . . 1 . . . . . . . . Hacks Repelled . | . . . . . . . . . . . . . . . . . . . . . . . . . . . . . . . . . . Allies | -11 -10 -10 -10 -9 -8 -8 -8 -8 -8 -8 -8 -6 -6 -6 -6 -6 -6 -5 -5 -5 -5 -4 -4 -4 -4 -4 -4 -4 -3 -3 -3 -2 -1 -------- Run | Yrd Mat Min Exi Min Mat Gar Mat Sto Gar Rec Scr Fac Gar Fac Gar Fac DSF Fac Upp Upp Zhi Pro Fac Was Fac Upp Upp War Pro Res DSF Res Acc Total Allies 56 | . 1 1 . 3 . 5 . 10 2 . . . 1 . 2 . . . 1 . . 5 7 . 3 . . 10 . . . 1 4 Largest Group 12 | . 1 2 1 4 4 6 6 12 5 . . . 1 . 1 . . . 1 . . 3 4 4 5 . . 5 . . . 1 4 Highest-Rated Group 288 | . 90 121 90 130 130 131 131 225 93 . . . 85 . 116 . . . 183 . . 114 224 224 242 . . 288 . . . 110 222 Highest-Rated Ally 183 | . 90 90 90 90 90 31 31 31 39 . . . 85 . 116 . . . 183 . . 38 56 56 56 . . 64 . . . 110 59 Initial Warlord ECA Mod 47 | . . . . . . . 12 12 12 22 22 20 20 29 29 32 32 41 41 41 41 40 40 39 39 39 39 39 38 38 38 47 46 Warlord Squad Rendezvous 1 | . . . . . . . . . . . . . . . . . . . . . . . 1 . . . . . . . . . . Chimera 1 | . . . . . . . . . . . . . . . . . . . . . . . 1 . . . . . . . . . . Total Orders 7 | . . . . . . . . . . . . . 2 . . . . . . . . . . . 2 1 2 . . . . . . ROAM 1 | . . . . . . . . . . . . . 1 . . . . . . . . . . . . . . . . . . . . EXPLORE 6 | . . . . . . . . . . . . . 1 . . . . . . . . . . . 2 1 2 . . . . . . Ally Attacks 586 | . 18 16 . 3 12 . 55 117 73 . . . 18 . 17 . . . 14 . . 21 14 . 46 . . 147 . . . 4 11 Total Damage 16608 | . 651 358 . 30 181 . 768 1432 863 . . . 1001 . 1001 . . . 1274 . . 743 292 . 1659 . . 4901 . . . 167 1287 Kills 105 | . 4 3 . 1 2 . 12 18 6 . . . 9 . 2 . . . 8 . . 2 1 . 10 . . 24 . . . 1 2 Allies Corrupted 1 | . . . . . . . . . 1 . . . . . . . . . . . . . . . . . . . . . . . . Allies Melted 5 | . . . . . . . . . . . . . . . . . . . . . . 1 . . 2 . . . . . . 2 . X0-1V1 Amusement Gains 466 | . 14 . . . 5 . . 10 77 21 . 1 52 4 19 . . . 4 4 . 4 4 1 35 3 6 86 2 . 3 38 73 Good Acts 158 | . 11 . . 1 2 6 . 2 13 2 . . 11 4 6 1 5 7 4 2 . 6 6 1 12 4 2 6 3 . 2 12 27 Bad Acts 81 | . 5 2 . 2 1 3 1 3 3 1 . . 7 1 4 . . 1 . . . . 4 . . . . 5 . . 4 13 21 Intel | -11 -10 -10 -10 -9 -8 -8 -8 -8 -8 -8 -8 -6 -6 -6 -6 -6 -6 -5 -5 -5 -5 -4 -4 -4 -4 -4 -4 -4 -3 -3 -3 -2 -1 ------- Run | Yrd Mat Min Exi Min Mat Gar Mat Sto Gar Rec Scr Fac Gar Fac Gar Fac DSF Fac Upp Upp Zhi Pro Fac Was Fac Upp Upp War Pro Res DSF Res Acc Active Infowar (turns) 6311 | . 262 . . . 99 800 64 . . 29 . . 32 179 823 200 350 494 424 457 264 . . . 111 29 128 53 . . . 22 1491 Optics 618 | . . . . . . . . . . . . . . . . . . . . . 199 . . . . . . 2 . . . 22 395 Sensors 95 | . . . . . . . . . . . . . . . . . . . . . . . . . . 29 . . . . . . 66 IFF 796 | . . . . . . . . . . . . . . . 151 200 350 95 . . . . . . . . . . . . . . . Structural 1225 | . 262 . . . 99 800 64 . . . . . . . . . . . . . . . . . . . . . . . . . . Traps 179 | . . . . . . . . . . . . . . . . . . . . . . . . . . . 128 51 . . . . . Decoding 2797 | . . . . . . . . . . . . . . 179 823 200 73 377 424 457 264 . . . . . . . . . . . . Cloaking 745 | . . . . . . . . . . . . . . . . . . . . . . . . . . . . . . . . . 745 Spoofing 22 | . . . . . . . . . . . . . . . . . . 22 . . . . . . . . . . . . . . . Jamming 1164 | . . . . . . . . . . 29 . . . . . . . . . . . . . . 111 . . . . . . . 1024 ECM 32 | . . . . . . . . . . . . . 32 . . . . . . . . . . . . . . . . . . . . Robot Analysis Total 10 | . 2 . . 1 . . 3 . . . . . . . . . . . . . 4 . . . . . . . . . . . . Derelict Logs Recovered 8 | . . 2 . 1 . . . . . . . . . . . . . . 2 . . 1 . . . . 2 . . . . . . Drone Launches 11 | . . . . . . . . . . . . . 2 . . . . . . . . . . . 6 1 2 . . . . . . Drone Recoveries 4 | . . . . . . . . . . . . . . . . . . . . . . . . . 3 1 . . . . . . . Decoded 0b10 Intel 81 | . . . . . . . . . . . . . . 26 34 7 3 11 . . . . . . . . . . . . . . . Traps 9 | . . . . . . . . . . . . . . . 3 3 1 2 . . . . . . . . . . . . . . . Emergency Access 1 | . . . . . . . . . . . . . . . . . . 1 . . . . . . . . . . . . . . . Items 66 | . . . . . . . . . . . . . . 26 30 3 2 5 . . . . . . . . . . . . . . . Machines 4 | . . . . . . . . . . . . . . . 1 1 . 2 . . . . . . . . . . . . . . . Guards 1 | . . . . . . . . . . . . . . . . . . 1 . . . . . . . . . . . . . . . Exploration | -11 -10 -10 -10 -9 -8 -8 -8 -8 -8 -8 -8 -6 -6 -6 -6 -6 -6 -5 -5 -5 -5 -4 -4 -4 -4 -4 -4 -4 -3 -3 -3 -2 -1 ------------- Run | Yrd Mat Min Exi Min Mat Gar Mat Sto Gar Rec Scr Fac Gar Fac Gar Fac DSF Fac Upp Upp Zhi Pro Fac Was Fac Upp Upp War Pro Res DSF Res Acc Turns Passed 20275 | 68 860 416 353 436 99 800 403 417 1474 691 747 74 1470 894 1118 200 350 1519 508 457 314 301 352 283 891 124 217 678 161 69 283 1523 1725 Spaces Moved 13053 | 56 640 233 292 366 84 714 302 359 606 380 401 37 551 363 520 128 111 661 278 266 202 212 262 241 645 295 352 626 228 132 110 902 1498 Core 88 | 12 . . . . . . . . 17 . . . . . . . . . . . . . . . . . . . . . . . 59 Treads 2426 | . 86 233 116 . . . . . . . . . . . 446 128 111 661 278 266 101 . . . . . . . . . . . . Legs 3468 | . . . . . . . . . 437 380 401 37 551 363 74 . . . . . 101 212 262 241 409 . . . . . . . . Wheels 3283 | 44 554 . 176 366 84 714 302 359 125 . . . . . . . . . . . . . . . . . . . . . . . 559 Hover 3513 | . . . . . . . . . 27 . . . . . . . . . . . . . . . 236 295 352 626 228 132 110 902 605 Flight 275 | . . . . . . . . . . . . . . . . . . . . . . . . . . . . . . . . . 275 Fastest Speed 24 | 50 90 160 80 95 85 85 100 85 85 175 175 185 115 140 150 150 150 162 163 163 110 110 105 116 24 24 24 44 57 48 48 49 30 Average Speed 116 | 81 99 160 114 95 86 97 100 87 188 177 184 188 197 230 165 150 215 186 163 163 137 111 114 116 85 24 40 58 57 48 52 65 67 Slowest Speed 700 | 90 160 160 160 95 95 100 100 100 700 190 195 193 250 250 250 150 245 242 163 163 260 112 118 118 450 24 46 113 57 57 58 120 260 Overloaded Moves 163 | . . . . . . . . . . . . . . . . . . . . . . . . . . . . . . . . . 163 Propulsion Burnouts . | . . . . . . . . . . . . . . . . . . . . . . . . . . . . . . . . . . Robots Hopped 8 | . . . . . . . . . . . . . . . . . . . . . . . . . . . . 1 . . . . 7 Potential Cave-ins . | . . . . . . . . . . . . . . . . . . . . . . . . . . . . . . . . . . Cave-ins Triggered . | . . . . . . . . . . . . . . . . . . . . . . . . . . . . . . . . . . Teleports 1 | . . . . . . . . . . . . . . . . . . . . . . . . . . . . . . . . 1 . Exploration Rate (%) 49 | 3 94 57 69 71 8 94 39 60 92 69 38 1 70 11 61 7 89 25 52 44 63 47 12 85 22 50 66 85 47 4 73 28 30 Regions Visited 33 Branch Regions 14 Pre-discovered Areas 7 | . . . 1 . . . . . . . . . . . . . . . 2 . 3 . . . . . 1 . . . . . . Known Exits Taken 18 | . 1 . . . 1 . 1 1 . . . 1 . 1 . 1 . 1 1 1 . 1 . . 1 1 1 1 1 1 . 1 . Unknown Exits Taken 7 | 1 . 1 1 1 . . . . . 1 1 . . . . . . . . . 1 . . . . . . . . . . . . Scrap Searched 19 | . . 1 . 2 . . . . . . 6 . . . . . . . 3 4 . 1 . . . 1 1 . . . . . . Spaces Dug 68 | . . . . . . . . . . . . . . . . . . 31 . . . . . . 1 . . . . . . 6 30 Terrain Destroyed 459 | . . . . . 35 2 5 . 74 . . . 17 66 46 . 6 67 . 2 . . . . 8 . . 8 2 . 4 29 88 Melee 16 | . . . . . . . . . . . . . . . . . . . . . . . . . 1 . . . . . . 2 13 Projectile 168 | . . . . . . 2 5 . 1 . . . 7 . 9 . 6 58 . 2 . . . . 7 . . 8 2 . 4 12 45 AOE 275 | . . . . . 35 . . . 73 . . . 10 66 37 . . 9 . . . . . . . . . . . . . 15 30 Terrain Rammed . | . . . . . . . . . . . . . . . . . . . . . . . . . . . . . . . . . . Walls Destroyed . | . . . . . . . . . . . . . . . . . . . . . . . . . . . . . . . . . . Machines Disabled . | . . . . . . . . . . . . . . . . . . . . . . . . . . . . . . . . . . Actions | -11 -10 -10 -10 -9 -8 -8 -8 -8 -8 -8 -8 -6 -6 -6 -6 -6 -6 -5 -5 -5 -5 -4 -4 -4 -4 -4 -4 -4 -3 -3 -3 -2 -1 --------- Run | Yrd Mat Min Exi Min Mat Gar Mat Sto Gar Rec Scr Fac Gar Fac Gar Fac DSF Fac Upp Upp Zhi Pro Fac Was Fac Upp Upp War Pro Res DSF Res Acc Total 16632 | 74 821 255 312 436 102 786 370 423 775 390 409 42 776 406 643 136 161 835 309 280 223 246 295 244 893 332 422 853 252 135 284 1732 1980 Wait 1773 | . 150 10 11 56 3 9 32 20 26 4 . . 37 16 7 7 7 75 1 2 . 12 6 4 72 14 65 64 22 . 123 712 206 Move 13006 | 55 639 232 291 365 84 713 301 358 605 379 400 36 550 362 519 127 110 660 277 265 201 211 262 240 644 294 351 623 227 131 109 901 1484 Hop 8 | . . . . . . . . . . . . . . . . . . . . . . . . . . . . 1 . . . . 7 Pick Up 202 | 11 4 1 2 3 4 10 7 8 14 2 3 2 26 2 19 . 2 8 3 1 2 . 1 . 17 2 1 10 . . 1 11 25 Fast Attach 213 | . 1 . . . . 1 . 2 4 . 2 . 7 11 6 1 7 9 4 3 4 2 8 . 29 3 2 28 . 3 14 20 42 Attach 120 | 6 1 . . . 5 . . 1 11 1 . 4 25 . 7 . 1 4 . . 2 . . . 9 2 1 5 . . 1 8 26 Detach 14 | . . . . . . . . . 1 . . . 5 . 1 . 1 . . . . . . . 1 . . 2 . . . . 3 Swap 77 | . 4 . 3 . . 3 7 6 7 . . . 4 2 9 . . 6 2 . 1 1 3 . 6 1 . 3 . . 1 4 4 Drop 245 | . . 1 5 . . 9 7 10 8 . 4 . 7 6 14 1 5 17 5 4 4 2 4 . 35 4 1 23 . 1 13 23 32 Fire 662 | 2 22 11 . 12 6 20 16 18 78 4 . . 75 5 52 . 27 55 9 3 . . . . 39 7 . 42 3 . 21 44 91 Melee 188 | . . . . . . . . . . . . . . 2 9 . 1 1 8 2 9 18 11 . 38 5 1 13 . . 1 9 60 Ram . | . . . . . . . . . . . . . . . . . . . . . . . . . . . . . . . . . . Kick . | . . . . . . . . . . . . . . . . . . . . . . . . . . . . . . . . . . Crush . | . . . . . . . . . . . . . . . . . . . . . . . . . . . . . . . . . . Escape Stasis 56 | . . . . . . . . . 21 . . . 35 . . . . . . . . . . . . . . . . . . . . Rewire 68 | . . . . . . 21 . . . . . . 5 . . . . . . . . . . . 3 . . 39 . . . . . Trap . | . . . . . . . . . . . . . . . . . . . . . . . . . . . . . . . . . . Miscellaneous . | . . . . . . . . . . . . . . . . . . . . . . . . . . . . . . . . . . Route ------- -11/Scrapyard -10/Materials (discovered 5 exits: [*Mat x3] / *Min / [*Sub]) -10/Mines (discovered 3 exits: [*Mat x2] / *Exi) -10/Exiles (discovered 2 exits: *Min x2) -9/Mines -8/Materials (discovered 2 exits: *Sto / Gar) -8/Garrison (discovered 3 exits: *Mat x3) -8/Materials (discovered 3 exits: [*Fac] / *Sto x2) -8/Storage (discovered 2 exits: *Rec / Gar) -8/Garrison (discovered 3 exits: *Rec x3) -8/Recycling -8/Scraptown -6/Factory -6/Garrison (discovered 3 exits: *Fac x3) -6/Factory -6/Garrison (discovered 2 exits: *Fac x2) -6/Factory -6/DSF -5/Factory -5/Upper Caves -5/Upper Caves -5/Zhirov -4/Proximity Caves -4/Factory -4/Waste -4/Factory (discovered 5 exits: *Res x2 / *Upp x2 / Arm) -4/Upper Caves -4/Upper Caves (discovered 2 exits: *Res / *War) -4/Warlord -3/Proximity Caves -3/Research -3/DSF -2/Research (discovered 3 exits: *Acc / *Tes x2) -1/Access (discovered 2 exits: Sur / Com) History --------- Turn | Location | Event 6 | -11/Scrapyard | Discovered new exit (range 16) 69 | -11/Scrapyard | Entered Materials 70 | -10/Materials | Met a group of wandering Federalists 194 | -10/Materials | Discovered new exit (range 3) 223 | -10/Materials | Discovered new exit (range 15) 261 | -10/Materials | Discovered new exit (range 10) 317 | -10/Materials | Build established: Mutant 605 | -10/Materials | Prayed at D.C.S.S. Altar Unit 706 | -10/Materials | Heat dissipation permanently improved by X0-1V1 (+15; -75 max core) 722 | -10/Materials | X0-1V1 sent allied H-61 Shepherd (x1) 727 | -10/Materials | X0-1V1 activates XOMVISION 740 | -10/Materials | X0-1V1 foreshadows a heat wave 762 | -10/Materials | X0-1V1 vaporized surrounding terrain (radius 18) 764 | -10/Materials | Discovered new exit (range 17) 777 | -10/Materials | X0-1V1 sent you into danger 834 | -10/Materials | Identified exit to Mines 929 | -10/Materials | Entered Mines 929 | -10/Mines | Accompanied by 1 ally 985 | -10/Mines | Received a Mining Laser from a helpful Derelict 1024 | -10/Mines | Learned 4 Materials zone layouts 1074 | -10/Mines | Learned Materials stockpile data 1222 | -10/Mines | Discovered new exit (range 7) 1225 | -10/Mines | Found DCF Scrap (12 items) 1286 | -10/Mines | Found a hidden stash of uninstalled traps 1296 | -10/Mines | Discovered new exit (range 9) 1296 | -10/Mines | X0-1V1 announced a LAN party 1334 | -10/Mines | Deemed a non-threat by the Exiles lab entrance 1334 | -10/Mines | Discovered new exit (range 5) 1345 | -10/Mines | Entered Exiles 1345 | -10/Exiles | Accompanied by 1 ally 1371 | -10/Exiles | Discovered new exit (range 15) 1389 | -10/Exiles | Met 8R-AWN 1411 | -10/Exiles | Met EX-HEX 1459 | -10/Exiles | Met EX-BIN 1478 | -10/Exiles | Aligned with FarCom system 1480 | -10/Exiles | Given EX-Vault access code 1518 | -10/Exiles | Opened EX-Vault 1536 | -10/Exiles | Found XL Autogun Array 1553 | -10/Exiles | Warned to stay clear of 0b10 Research branches 1601 | -10/Exiles | Met EX-DEC 1616 | -10/Exiles | Learned location of Zion (-6) 1677 | -10/Exiles | Discovered new exit (range 10) 1698 | -10/Exiles | Left Exiles lab with XL Autogun Array 1698 | -10/Exiles | Entered Mines 1698 | -9/Mines | Accompanied by 1 ally 1735 | -9/Mines | Assisted by bots powering up and referring to "LRC-V3" 1807 | -9/Mines | Core integrity permanently improved by X0-1V1 (+200) 1899 | -9/Mines | Learned Materials trap positions 2053 | -9/Mines | Discovered new exit (range 8) 2060 | -9/Mines | Received a Rocket Launcher from a helpful Derelict 2134 | -9/Mines | Entered Materials 2134 | -8/Materials | Accompanied by 4 allies 2134 | -8/Materials | Evolved 4 slots: Utility x3, Weapon x1 2136 | -8/Materials | Loaded intel: 11 trap records 2146 | -8/Materials | X0-1V1 activates XOMVISION 2211 | -8/Materials | X0-1V1 announced a LAN party 2227 | -8/Materials | Discovered new exit (range 7) 2230 | -8/Materials | Identified exit to Garrison 2233 | -8/Materials | Entered Garrison 2233 | -8/Garrison | Discovered recently destroyed garrison 2233 | -8/Garrison | Accompanied by 1 ally 2398 | -8/Garrison | Garrison Relay disabled 2404 | -8/Garrison | Matter capacity permanently improved by X0-1V1 (+200; -100 max core) 2510 | -8/Garrison | Build established: Skirmisher 2510 | -8/Garrison | Discovered new exit (range 14) 2523 | -8/Garrison | Garrison Relay disabled 2545 | -8/Garrison | Garrison Relay disabled 2549 | -8/Garrison | Garrison Relay disabled 2792 | -8/Garrison | Rescued a captive Derelict 2794 | -8/Garrison | Rescued a captive Derelict 2816 | -8/Garrison | Garrison Relay disabled 2852 | -8/Garrison | Discovered new exit (range 10) 2934 | -8/Garrison | Identified exit to Materials 2934 | -8/Garrison | X0-1V1 revealed exit location to -8/Materials 2951 | -8/Garrison | Garrison Relay disabled 3008 | -8/Garrison | X0-1V1 activates XOMVISION 3033 | -8/Garrison | Entered Materials 3033 | -8/Materials | Accompanied by 6 allies 3175 | -8/Materials | Build established: Commander-Skirmisher 3183 | -8/Materials | Discovered new exit (range 16) 3191 | -8/Materials | Identified exit to Storage 3433 | -8/Materials | First assault squad dispatched 3436 | -8/Materials | Entered Storage 3436 | -8/Storage | Accompanied by 5 allies 3565 | -8/Storage | Assisted by bots powering up and referring to "LRC-V3" 3603 | -8/Storage | Lost 4 allies 3814 | -8/Storage | Used back door to open Recycling access 3814 | -8/Storage | Discovered new exit (range 5) 3824 | -8/Storage | Garrison activated, responded to threat 3843 | -8/Storage | Identified exit to Garrison 3851 | -8/Storage | Lost 5 allies 3853 | -8/Storage | Entered Garrison 3853 | -8/Garrison | Accompanied by 5 allies 3882 | -8/Garrison | Identified exit to Recycling 3882 | -8/Garrison | X0-1V1 revealed exit location to -8/Recycling 3885 | -8/Garrison | Triggered checkpoint 3901 | -8/Garrison | Garrison Relay disabled 3925 | -8/Garrison | Triggered checkpoint 4201 | -8/Garrison | Triggered checkpoint 4229 | -8/Garrison | Build established: Hacker-Skirmisher 4279 | -8/Garrison | Lost 3 allies 4318 | -8/Garrison | Destroyed 9 combat bots 4325 | -8/Garrison | Triggered checkpoint 4443 | -8/Garrison | X0-1V1 vaporized surrounding terrain (radius 15) 4446 | -8/Garrison | X0-1V1 downgraded hostiles (x1) 4448 | -8/Garrison | Triggered checkpoint 4481 | -8/Garrison | Garrison Relay disabled 4508 | -8/Garrison | Discovered exit to Recycling (range 14) 4626 | -8/Garrison | Build established: Mutant 4627 | -8/Garrison | Phase Generator disabled 4874 | -8/Garrison | Rescued a captive Derelict 4875 | -8/Garrison | Rescued a captive Derelict 4910 | -8/Garrison | Garrison Relay disabled 4941 | -8/Garrison | Build established: Skirmisher 5037 | -8/Garrison | Forcibly received Sfc. Transmogifier from X0-1V1 5040 | -8/Garrison | Garrison Relay disabled 5071 | -8/Garrison | Triggered checkpoint 5085 | -8/Garrison | X0-1V1 activates XOMVISION 5239 | -8/Garrison | Lost 4 parts (1p1u2w) 5302 | -8/Garrison | Discovered exit to Recycling (range 3) 5327 | -8/Garrison | Entered Recycling 5386 | -8/Recycling | Scanned before Scraplab entrance 5404 | -8/Recycling | X0-1V1 mutated your Utility slot to Weapon slot 5497 | -8/Recycling | X0-1V1 activates XOMVISION 5997 | -8/Recycling | Entered Scraplab 6015 | -8/Recycling | Discovered new exit (range 3) 6018 | -8/Recycling | Entered Scraptown 6238 | -8/Scraptown | Turned away by UFD registrar 6264 | -8/Scraptown | Visited Supply Room 6319 | -8/Scraptown | Build established: Gunner 6328 | -8/Scraptown | Visited CPS Storage 6343 | -8/Scraptown | Visited Cave Peace 6367 | -8/Scraptown | Visited Bundlers 6460 | -8/Scraptown | Visited Symbiants 6477 | -8/Scraptown | Visited Red Mages 6663 | -8/Scraptown | Discovered new exit (range 11) 6737 | -8/Scraptown | Heard Great Nut preacher, LISTEN AND RECITE! 6765 | -8/Scraptown | Entered Factory 6765 | -6/Factory | Evolved 4 slots: Power x1, Propulsion x1, Utility x2 6838 | -6/Factory | Identified exit to Garrison 6839 | -6/Factory | Entered Garrison 6945 | -6/Garrison | Triggered checkpoint 6977 | -6/Garrison | Garrison Relay disabled 7049 | -6/Garrison | Triggered checkpoint 7078 | -6/Garrison | Build established: Skirmisher 7136 | -6/Garrison | Triggered checkpoint 7185 | -6/Garrison | X0-1V1 destroyed Phase Generator 7185 | -6/Garrison | Phase Generator disabled 7253 | -6/Garrison | Spotted B-90 Cyclops 7267 | -6/Garrison | Destroyed B-90 Cyclops 7337 | -6/Garrison | Spotted B-75 Beast 7339 | -6/Garrison | X0-1V1 upgraded hostiles (x1) 7339 | -6/Garrison | Spotted B-86 Titan 7357 | -6/Garrison | Weapon slot count temporarily expanded by X0-1V1 (+1) 7377 | -6/Garrison | Destroyed B-86 Titan 7384 | -6/Garrison | Discovered new exit (range 15) 7402 | -6/Garrison | Lost 5 parts (1u4w) 7417 | -6/Garrison | Triggered checkpoint 7465 | -6/Garrison | Rewired B-75 Beast 7592 | -6/Garrison | X0-1V1 activates XOMVISION 7605 | -6/Garrison | Triggered checkpoint 7645 | -6/Garrison | Garrison Relay disabled 7707 | -6/Garrison | Identified exit to Factory 7707 | -6/Garrison | X0-1V1 revealed exit location to -6/Factory 7747 | -6/Garrison | Triggered checkpoint 7775 | -6/Garrison | Spotted B-75 Beast 7775 | -6/Garrison | X0-1V1 sent you into danger 7809 | -6/Garrison | Attached CPS modules to B-75 Beast 7828 | -6/Garrison | Allies destroyed B-75 Beast 7859 | -6/Garrison | Lost 8 parts (1p1u6w) 8003 | -6/Garrison | Discovered exit to Factory (range 11) 8015 | -6/Garrison | Triggered checkpoint 8102 | -6/Garrison | Garrison Relay disabled 8159 | -6/Garrison | Garrison Relay disabled 8161 | -6/Garrison | Build established: Scavenger-Skirmisher 8249 | -6/Garrison | Triggered checkpoint 8259 | -6/Garrison | X0-1V1 vaporized surrounding terrain (radius 15) 8264 | -6/Garrison | X0-1V1 downgraded hostiles (x4) 8309 | -6/Garrison | Entered Factory 8620 | -6/Factory | Build established: Skirmisher 8807 | -6/Factory | Core integrity fell below 50% 8964 | -6/Factory | X0-1V1 whisked you away to safety 9096 | -6/Factory | Identified exit to Garrison 9203 | -6/Factory | Entered Garrison 9371 | -6/Garrison | Found Gamma Bomb Array 9385 | -6/Garrison | X0-1V1 sent allied Knight (x1) 9386 | -6/Garrison | Spotted B-75 Beast 9402 | -6/Garrison | Destroyed B-75 Beast 9453 | -6/Garrison | Triggered checkpoint 9497 | -6/Garrison | X0-1V1 sent you into danger 9507 | -6/Garrison | System corruption reached 10% 9610 | -6/Garrison | Garrison Relay disabled 9691 | -6/Garrison | Triggered checkpoint 9796 | -6/Garrison | Garrison Relay disabled 9831 | -6/Garrison | Triggered checkpoint 9840 | -6/Garrison | Discovered new exit (range 15) 9861 | -6/Garrison | X0-1V1 sent allied B-86 Titan (x1) 9949 | -6/Garrison | Triggered checkpoint 9972 | -6/Garrison | X0-1V1 activates XOMVISION 10047 | -6/Garrison | Discovered new exit (range 10) 10077 | -6/Garrison | Triggered checkpoint 10114 | -6/Garrison | Garrison Relay disabled 10171 | -6/Garrison | Core integrity fell below 20% 10249 | -6/Garrison | Learned Factory security intel 10321 | -6/Garrison | Entered Factory 10462 | -6/Factory | Build established: Assassin 10519 | -6/Factory | Identified exit to DSF 10521 | -6/Factory | Entered DSF 10547 | -6/DSF | Additional patrols routed to DSF 10568 | -6/DSF | Weapon slot count temporarily expanded by X0-1V1 (+3) 10780 | -6/DSF | Discovered new exit (range 14) 10819 | -6/DSF | Sterilization system engaged 10839 | -6/DSF | Ambient heat levels rising (+10) 10854 | -6/DSF | Ambient heat levels rising (+10) 10869 | -6/DSF | Ambient heat levels rising (+10) 10871 | -6/DSF | Entered Factory 10871 | -5/Factory | Evolved 2 slots: Propulsion x1, Utility x1 11699 | -5/Factory | Build established: Skirmisher 12061 | -5/Factory | Build established: Tank 12071 | -5/Factory | First assault squad dispatched 12377 | -5/Factory | Discovered new exit (range 8) 12388 | -5/Factory | Identified exit to Upper Caves 12390 | -5/Factory | Entered Upper Caves 12399 | -5/Upper Caves | X0-1V1 sent allied H-81 Overseer (x1) 12454 | -5/Upper Caves | Met a Warlord Commander 12455 | -5/Upper Caves | Learned location of Warlord (-4) 12456 | -5/Upper Caves | Warlord Commander delivered Encrypted Comm Array 12456 | -5/Upper Caves | Found Encrypted Comm Array 12479 | -5/Upper Caves | Build established: Mutant 12492 | -5/Upper Caves | Identified exit to Upper Caves 12600 | -5/Upper Caves | Attracted the attention of an 0b10 checkpoint 12847 | -5/Upper Caves | Encountered a Warlord checkpoint 12898 | -5/Upper Caves | Entered another Upper Caves area 12915 | -5/Upper Caves | Identified exit to Zhirov 12915 | -5/Upper Caves | X0-1V1 revealed exit location to -5/Zhirov 13355 | -5/Upper Caves | Entered Zhirov 13355 | -5/Zhirov | Discovered new exit (range 3) 13385 | -5/Zhirov | Met Zhirov 13417 | -5/Zhirov | Learned location of Quarantine (-3) 13417 | -5/Zhirov | Learned location of Testing (-2) 13417 | -5/Zhirov | Learned location of Command (-1) 13445 | -5/Zhirov | Zhirov requested help retrieving the SGEMP Prototype 13575 | -5/Zhirov | Found Alien Artifact 13576 | -5/Zhirov | Identified Integrated Dissipator 13576 | -5/Zhirov | Installed Integrated Dissipator, increased core heat dissipation (+20) 13591 | -5/Zhirov | Found Alien Artifact 13669 | -5/Zhirov | Entered Proximity Caves 13698 | -4/Proximity Caves | Learned Research emergency access door positions 13714 | -4/Proximity Caves | X0-1V1 turns hostiles against one another 13818 | -4/Proximity Caves | Attracted the attention of an 0b10 checkpoint 13821 | -4/Proximity Caves | Identified exit to Factory 13821 | -4/Proximity Caves | X0-1V1 revealed exit location to -4/Factory 13856 | -4/Proximity Caves | X0-1V1 activates XOMVISION 13904 | -4/Proximity Caves | Spotted B-86 Titan 13911 | -4/Proximity Caves | X0-1V1 sent allied Butcher (x4) 13925 | -4/Proximity Caves | Destroyed B-86 Titan 13970 | -4/Proximity Caves | Entered Factory 13970 | -4/Factory | Evolved 2 slots: Propulsion x1, Utility x1 13989 | -4/Factory | Joined by Warlord Chimera squad 14062 | -4/Factory | Identified Transdimensional Reconstructor 14082 | -4/Factory | Discovered new exit (range 5) 14087 | -4/Factory | Identified exit to Research 14131 | -4/Factory | X0-1V1 tapped a No Entrance sign 14139 | -4/Factory | X0-1V1 upgraded hostiles (x2) 14141 | -4/Factory | X0-1V1 whisked you away to safety 14149 | -4/Factory | Build established: Gladiator 14160 | -4/Factory | X0-1V1 released a cloud of subatomizers 14245 | -4/Factory | Found Chaos Jack 14257 | -4/Factory | X0-1V1 sent allied C-35 Carver (x3) 14276 | -4/Factory | X0-1V1 sent you to a vault 14299 | -4/Factory | Lost 3 allies 14322 | -4/Factory | Sucked down chute 14322 | -4/Factory | Entered Waste 14322 | -4/Waste | The area was eerily silent 14377 | -4/Waste | 4 allies followed down the chute 14550 | -4/Waste | X0-1V1 activates XOMVISION 14585 | -4/Waste | Discovered new exit (range 12) 14598 | -4/Waste | Identified exit to Factory 14605 | -4/Waste | Entered Factory 14605 | -4/Factory | Accompanied by 4 allies 14668 | -4/Factory | Discovered exit to Research (range 10) 14675 | -4/Factory | Build established: Commander-Mutant 14728 | -4/Factory | Lost 3 allies 14867 | -4/Factory | X0-1V1 activates XOMVISION 14888 | -4/Factory | Lost 4 allies 14902 | -4/Factory | Identified exit to Upper Caves 14902 | -4/Factory | Identified exit to Armory 14939 | -4/Factory | X0-1V1 sent you to a vault 14952 | -4/Factory | Found Prototype Slashing Weapon 14952 | -4/Factory | Identified Hvy. Scimitar of Distortion 15038 | -4/Factory | Discovered exit to Research (range 8) 15189 | -4/Factory | Lost 10 parts (3p5u2w) 15220 | -4/Factory | Destroyed 9 combat bots 15256 | -4/Factory | System corruption reached 10% 15258 | -4/Factory | Spotted B-86 Titan 15282 | -4/Factory | Core integrity restored by X0-1V1 (+246) 15383 | -4/Factory | Cargo convoy interrupted 15476 | -4/Factory | X0-1V1 activates XOMVISION 15491 | -4/Factory | Repaired Hvy. Armored Exoskeleton? 15496 | -4/Factory | Entered Upper Caves 15536 | -4/Upper Caves | Spotted B-86 Titan 15580 | -4/Upper Caves | Acquired the password to a Derelict Tinkerer's latest research 15584 | -4/Upper Caves | Found Prototype Special Weapon 15584 | -4/Upper Caves | Identified Molecular Deconstructor 15614 | -4/Upper Caves | Discovered new exit (range 14) 15617 | -4/Upper Caves | Identified exit to Upper Caves 15619 | -4/Upper Caves | Ambushed by wild Derelicts 15620 | -4/Upper Caves | Entered another Upper Caves area 15622 | -4/Upper Caves | Discovered exit to Research (range 16) 15659 | -4/Upper Caves | Build established: Sprinter 15735 | -4/Upper Caves | Encountered a Warlord checkpoint 15796 | -4/Upper Caves | Discovered new exit (range 8) 15798 | -4/Upper Caves | Identified exit to Warlord 15837 | -4/Upper Caves | Entered Warlord 15878 | -4/Warlord | Met Warlord 15898 | -4/Warlord | Received a Watcher feed algorithm from an ecstatic Tinkerer 15903 | -4/Warlord | Warlord's base attacked by MAIN.C 15970 | -4/Warlord | Build established: Gladiator 16040 | -4/Warlord | Found Prototype Energy Cannon 16040 | -4/Warlord | Identified Vortex Cannon 16044 | -4/Warlord | Found Prototype Energy Gun 16044 | -4/Warlord | Identified Vortex Rifle 16047 | -4/Warlord | Found Vortex Rifle 16150 | -4/Warlord | Found Prototype Processor 16150 | -4/Warlord | Identified Spectral Analyzer 16153 | -4/Warlord | Found Prototype Device 16153 | -4/Warlord | Identified System Purifier 16160 | -4/Warlord | Found Vortex Chain Reactor 16234 | -4/Warlord | Warlord forces counterattacked 16237 | -4/Warlord | Spotted Executioner 16241 | -4/Warlord | Destroyed Executioner 16268 | -4/Warlord | Spotted Striker 16314 | -4/Warlord | Spotted B-90 Cyclops 16320 | -4/Warlord | Spotted Executioner 16342 | -4/Warlord | Destroyed Executioner 16359 | -4/Warlord | Core integrity fell below 50% 16361 | -4/Warlord | Lost 9 parts (2n4u3w) 16403 | -4/Warlord | Spotted Executioner 16403 | -4/Warlord | Spotted B-90 Cyclops 16403 | -4/Warlord | Spotted Striker 16410 | -4/Warlord | Lost 18 allies 16431 | -4/Warlord | X0-1V1 turns hostiles against one another 16460 | -4/Warlord | X0-1V1 sent allied Thug (x3) 16498 | -4/Warlord | Lost 3 parts (3u) 16502 | -4/Warlord | Found Prototype Device 16502 | -4/Warlord | Identified Adv. Kinecellerator 16503 | -4/Warlord | Spotted Executioner 16503 | -4/Warlord | Spotted Executioner 16509 | -4/Warlord | Discovered new exit (range 12) 16514 | -4/Warlord | Identified exit to Proximity Caves 16515 | -4/Warlord | Entered Proximity Caves 16517 | -3/Proximity Caves | Attracted the attention of an 0b10 outpost 16536 | -3/Proximity Caves | X0-1V1 activates XOMVISION 16539 | -3/Proximity Caves | Lost 15 allies 16660 | -3/Proximity Caves | Discovered exit to Research (range 13) 16676 | -3/Proximity Caves | Entered Research 16676 | -3/Research | Evolved 2 slots: Propulsion x2 16745 | -3/Research | Identified exit to DSF 16745 | -3/Research | Entered DSF 16782 | -3/DSF | Additional patrols routed to DSF 16806 | -3/DSF | Discovered new exit (range 15) 16814 | -3/DSF | Identified exit to Research 16944 | -3/DSF | X0-1V1 sent you into danger 16983 | -3/DSF | Sterilization system engaged 16991 | -3/DSF | Destroyed 7 combat bots 17003 | -3/DSF | Ambient heat levels rising (+10) 17018 | -3/DSF | Ambient heat levels rising (+10) 17020 | -3/DSF | Lost 5 parts (2p1u2w) 17028 | -3/DSF | Entered Research 17028 | -2/Research | Warlord forces began assault on 0b10 17028 | -2/Research | Evolved 2 slots: Power x1, Weapon x1 17029 | -2/Research | Identified exit to Testing 17041 | -2/Research | Central database locked down 17043 | -2/Research | Spotted B-90 Cyclops 17043 | -2/Research | X0-1V1 sent you into danger 17051 | -2/Research | Build established: Scavenger-Skirmisher 17053 | -2/Research | Distinguished unit "Lobotomizers" dispatched to help 17053 | -2/Research | Distinguished unit "The Professionals" dispatched to help 17138 | -2/Research | Research machine network offline 17162 | -2/Research | X0-1V1 sent you into danger 17200 | -2/Research | X0-1V1 sent you to a vault 17201 | -2/Research | Found Hvy. Scimitar of Distortion 17211 | -2/Research | Found Prototype Reactor 17211 | -2/Research | Identified Singularity Reactor 17215 | -2/Research | Found Prototype Device 17215 | -2/Research | Identified Adv. Particle Accelerator 17217 | -2/Research | Found Prototype Processor 17217 | -2/Research | Identified Exp. Core Analyzer 17301 | -2/Research | Discovered exit to Testing (range 8) 17384 | -2/Research | X0-1V1 sent hostile H-77 Assassin (x3) 17429 | -2/Research | Spotted B-90 Cyclops 17484 | -2/Research | Build established: Skirmisher 17505 | -2/Research | X0-1V1 activates XOMVISION 17510 | -2/Research | Warped through subspace 17534 | -2/Research | Discovered new exit (range 15) 17577 | -2/Research | Borebot progress halted 17639 | -2/Research | Borebot progress halted 17779 | -2/Research | Identified exit to Access 17897 | -2/Research | Build established: Tank 18030 | -2/Research | Spotted Executioner 18038 | -2/Research | Spotted Striker 18115 | -2/Research | Spotted Executioner 18116 | -2/Research | X0-1V1 sent allied Lightning (x1) 18118 | -2/Research | Allies destroyed Executioner 18123 | -2/Research | Destroyed Executioner 18137 | -2/Research | System corruption reached 10% 18235 | -2/Research | Build established: Gunner 18366 | -2/Research | Core integrity restored by X0-1V1 (+309) 18544 | -2/Research | Given Cave Seal Controls access code 18551 | -2/Research | Entered Access 18551 | -1/Access | Evolved 2 slots: Propulsion x2 18573 | -1/Access | Destroyed T3-4TM(D) 18626 | -1/Access | Garrison activated, responded to threat 18719 | -1/Access | X0-1V1 activates XOMVISION 18749 | -1/Access | X0-1V1 added 0b10 threat records associated with you (considerable) 18801 | -1/Access | First assault squad dispatched 18965 | -1/Access | Spotted B-99 Colossus 19011 | -1/Access | X0-1V1 activates XOMVISION 19032 | -1/Access | X0-1V1 added 0b10 threat records associated with you (considerable) 19078 | -1/Access | X0-1V1 sent you to a vault 19082 | -1/Access | Lost 7 parts (1p3n3w) 19093 | -1/Access | Found Hvy. Scimitar of Distortion 19098 | -1/Access | Found Prototype Device 19098 | -1/Access | Identified Exp. Cloaking Device 19102 | -1/Access | Found Prototype Device 19102 | -1/Access | Identified Exp. Phase Shifter 19145 | -1/Access | X0-1V1 whisked you away to safety 19172 | -1/Access | Lost 5 parts (1p1n3u) 19543 | -1/Access | Sensors blinded by X0-1V1 19610 | -1/Access | Found Quantum Capacitor 19617 | -1/Access | System corruption reached 10% 19713 | -1/Access | Lost 9 parts (3p2n2u2w) 19724 | -1/Access | X0-1V1 destroyed Energy Cycler 19724 | -1/Access | Energy Cycler disabled 19880 | -1/Access | System corruption reached 30% 19891 | -1/Access | Weapon slot count temporarily expanded by X0-1V1 (+1) 19940 | -1/Access | Lost 5 parts (3n1u1w) 19961 | -1/Access | Found Exp. Sensor Array 20005 | -1/Access | X0-1V1 redirected Transport squads to designated parking area 20090 | -1/Access | Identified exit to Command 20090 | -1/Access | X0-1V1 revealed exit location to -1/Command 20114 | -1/Access | Lost 5 parts (3n2w) 20115 | -1/Access | X0-1V1 enhanced Transport squad support 20160 | -1/Access | Core integrity fell below 50% 20219 | -1/Access | X0-1V1 activates XOMVISION 20230 | -1/Access | X0-1V1 mutated your Weapon slot to Propulsion slot 20241 | -1/Access | X0-1V1 sent you into danger 20242 | -1/Access | Released all parts (8) 20247 | -1/Access | Core integrity fell below 20% 20248 | -1/Access | X0-1V1 sent allied C-57 Dissector (x4) 20271 | -1/Access | Identified exit to Surface 20271 | -1/Access | X0-1V1 revealed exit location to -0/Surface 20276 | -1/Access | Destroyed by H-88 Terminator with KE Penetrator Last Messages --------------- 20249_ W-44 Eye knocked back. 20249_ G-73 Enforcer knocked back. 20250_ Slug penetrates Wall. 20250_ Slug penetrates C-57 Dissector. 20250_ Slug penetrates Wall. 20253_ Slug penetrates C-57 Dissector. 20254_ W-44 Eye destroyed. 20263_ System corrupted: Heat flow error (+243). 20263_ K-01 Serf destroyed. 20271_ TF Node disabled. 20271_ X0-1V1: "I guarantee there's even more fun over that way. Space? A sequel? Who knows!" 20271_ EXIT=REVEALED: SURFACE 20272_ K-01 Serf collects debris. 20274_ Penetrated by Slug. 20274_ Imp. Antigrav System destroyed. 20276_ K-01 Serf collects debris. 20276_ Slug penetrates Wall. 20276_ X0-1V1 bursts into laughter! Map ----- +----------------------------------------------------+ | ?????????????????????????????????????????????????? | | ?????????????????????????????????????????????????? | | ?????????????????????????????????????????????????? | | ?????????????????????????????????????????????????? | | ?????????????????????????????????????????????????? | | ?????????????????????????????????????????????????? | | ?????????????????????????????????????????????????? | | ?????????????????????????????????????????????????? | | ?????????????????????????????????????????????????? | | ?????????????????????????????????????????????????? | | ?????????????????????????????????????????????????? | | ?????????????????????????????????????????????????? | | ?????????????????????????????????????????????????? | | ###########??????????????????????????????????????? | | """G""" #??????????????????????????????????????? | | """ """ #??????????????????????????????????????? | | #??????????????????????????????????????? | | #??????????????????????????????????????? | | #??????????????##+##???????????????????? | | #??????????????? #???????????????????? | | #??????????????h ????????????????????? | | #??????????????? !????????????????????? | | +???????????????#Y#????????????????????? | | #???????????????#h#????????????????????? | | #?????????????### ###???#######????????? | | ! #?????????????#@ k##### #????????? | | #/############ ????????# #????????? | | ????????# t " #????????? | | ????????# h #????????? | | ????????# #####g #????????? | | ##############???????#######???## ##????????? | | # #??????????????????#h #?????????? | | # b ]#??????????????????# #?????????? | | # #??????????????????#g #?????????? | | # """""" #????????????????##" ###???????? | | # """""" #????????????????# g h !#???????? | | # """""" #????????????????#H ##+####+# | | / """""" #????????????????g gh | | # """""" #???????????????? hR | | # #??????????????? | | # = #??????????????? ##+#####+ | | # ###????????????? #? ???? | | # = # ##?????????????##%% ##?? ??? | | ##############"#############+###%! #???? ?? | | #???????????# # !*/!/ #????? "" | | #???????????### ! #????? Y" | | #?????????????# #?????? "? | | #?????????????# #????????? | | """#?????????????# ????????? | | ?????????????????# ### ### ##???????? | +----------------------------------------------------+ Best States ------------- Heat Dissipation 173 Coolant Potential 200 Energy Generation 79 Energy Capacity 2500 Matter Stores 1200 Matter Capacity 1400 Sight Range 23 Robot Scan Range 20 Terrain Scan Density 210 ECM Strength 2 Jamming Range 22 Cloak Strength 4 Power Amplification 30 Additional Mass Support 20 Base Temperature (-) 200 Armor Coverage 1200 Resistance: KI 30 Resistance: TH 30 Resistance: EX 25 Resistance: EM 20 Core Shielding 40 Power Shielding 66 Propulsion Shielding 66 Utility Shielding 90 Weapon Shielding 66 Point Defense Rating 240 Weapon Cycling 20 Melee Speed Boost 30 Phase Shifting 10 Evasion (%) 77 Targeting Accuracy 20 Melee Accuracy 12 Target Analysis 5 Core Analysis 6 Armor Integrity Analysis 30 Recoil Reduction 4 Energy Filtering 30 Particle Charging 30 Kinecelleration 40 Offensive Hacking 16 Defensive Hacking 10 Authchip Count 2 Item Schematics ----------------- Imp. Heavy Armor Plating | -8/Storage | Hacked Imp. Shield Generator | -8/Recycling | Hacked Assault Drone Bay | -5/Zhirov | Free Exp. Heat Sink | -5/Zhirov | Free Exp. Optical Array | -5/Zhirov | Free Imp. Arc Thrower | -5/Zhirov | Free Imp. Phase Shifter | -2/Research | Extracted Robot Schematics ------------------ T-07 Excavator | -8/Storage | Hacked Fabricated ------------ Nothing Repaired ---------- Hvy. Armored Exoskeleton | 46% | -4/Factory Studied --------- Wheel | -8/Materials | Hacked Lgt. Angular Momentum Engine | -6/Factory | Hacked Antigrav Array | -2/Research | Hacked Alien Tech Used ----------------- Integrated Dissipator Transdimensional Reconstructor Achievements -------------- Decoder Ring I Laugh At Your Crits Special Forces Welcome To The Revolution Challenges ------------ None Game ------ Seed StealthSalvageTearclaws Manual? 0 Play Time 04:50:57 Cumulative 333.8 hours Start 2026.07.22 @ 21:35:55 End 2026.07.23 @ 04:42:58 Sessions 7 Manual Loads 0 Difficulty Rogue Special Mode None Game No. 256 Rogue 247 Adventurer 9 Explorer 0 Win Type - Total 4 Types 3/0/0/1/0/0/0/0/0/0 Lore% 87 Gallery% 72 Achievement% 51 Wizard Run 0 Options --------- Layout 1 ASCII 0 Keyboard 0 Movement Numpad Keybinds 0 Fullscreen 1 Font 24/Smallcaps Map View 50x35 Zoom Use 0% Tactical HUD 1 Map Filters NONE Filters NONE Steam 1 RUN: d7459bd3-198c-44f5-9fa7-8fd3b24e12dc